Publisher Label,Publisher URI,"Supplier ID","Supplier","Invoice No.","Amount £","Purpose","Transaction Number","Payment Date","Organisational Unit","Cost Centre(T)","Internal Category Number"
"Wolverhampton City Council","http://opendatacommunities.org/id/metropolitan-district-council/wolverhampton","700044","Access To Business","567","17,250.00","TPP - Social Care Support Services","130248860","27/03/2019","Enterprise","Access to Business","R5501"
"Wolverhampton City Council","http://opendatacommunities.org/id/metropolitan-district-council/wolverhampton","700194","Michelle Caney","INVMC36","3,000.00","Services - Professional Fees","130243742","01/03/2019","Legal Services","Centralised External Legal Costs","R4400"
"Wolverhampton City Council","http://opendatacommunities.org/id/metropolitan-district-council/wolverhampton","700264","Acorn Environmental Mgt Group Limited","12433","14,988.19","Construction and Conversion","130248862","27/03/2019","-","GF - Blue Network","C1100"
"Wolverhampton City Council","http://opendatacommunities.org/id/metropolitan-district-council/wolverhampton","700264","Acorn Environmental Mgt Group Limited","12350","66.66","Grounds Maintenance - Contract","130247171","22/03/2019","Environmental Maintenance","Arbor Scheme","R2075"
"Wolverhampton City Council","http://opendatacommunities.org/id/metropolitan-district-council/wolverhampton","700264","Acorn Environmental Mgt Group Limited","12334","5,244.03","Grounds Maintenance - Contract","130246170","22/03/2019","Environmental Maintenance","Arbor Scheme","R2075"
"Wolverhampton City Council","http://opendatacommunities.org/id/metropolitan-district-council/wolverhampton","700341","Acs Business Supplies Limited","SINV00506134","20.99","Equipment - Purchase","130244883","15/03/2019","Community Financial Support","Financial Assessments","R4000"
"Wolverhampton City Council","http://opendatacommunities.org/id/metropolitan-district-council/wolverhampton","700341","Acs Business Supplies Limited","SINV00507245","124.95","Stationery","130245976","27/03/2019","Governance Services","Scrutiny","R4308"
"Wolverhampton City Council","http://opendatacommunities.org/id/metropolitan-district-council/wolverhampton","700341","Acs Business Supplies Limited","SINV00508872","622.50","Stationery","130246341","27/03/2019","Governance Services","Business Support (Corporate Admin Review)","R4308"
"Wolverhampton City Council","http://opendatacommunities.org/id/metropolitan-district-council/wolverhampton","700341","Acs Business Supplies Limited","SINV00509639","167.99","Stationery","130246765","27/03/2019","Specialist Support","Key To Inspiration","R4308"
"Wolverhampton City Council","http://opendatacommunities.org/id/metropolitan-district-council/wolverhampton","700341","Acs Business Supplies Limited","SINV00507923","19.76","Stationery","130245981","27/03/2019","Learning Disability Provider","Community Pathways","R4308"
"Wolverhampton City Council","http://opendatacommunities.org/id/metropolitan-district-council/wolverhampton","700341","Acs Business Supplies Limited","SINV00508098","105.45","Photocopier Charges - Usage","130246337","27/03/2019","Local Economy","Global Budgets","R4305"
"Wolverhampton City Council","http://opendatacommunities.org/id/metropolitan-district-council/wolverhampton","700341","Acs Business Supplies Limited","SINV00508874","13.98","Equipment - Purchase","130246342","27/03/2019","Public Service Reform","Register Office","R4000"
"Wolverhampton City Council","http://opendatacommunities.org/id/metropolitan-district-council/wolverhampton","700341","Acs Business Supplies Limited","SINV00507244","18.98","Stationery","130245975","27/03/2019","Learning Disability Provider","Ernest Bold Court","R4308"
"Wolverhampton City Council","http://opendatacommunities.org/id/metropolitan-district-council/wolverhampton","700341","Acs Business Supplies Limited","SINV00507248","12.15","Stationery","130245979","27/03/2019","Governance Services","Business Support (Corporate Admin Review)","R4308"
"Wolverhampton City Council","http://opendatacommunities.org/id/metropolitan-district-council/wolverhampton","700341","Acs Business Supplies Limited","SINV00509637","113.94","Stationery","130246763","27/03/2019","School Planning & Resources","Education Data Services","R4308"
"Wolverhampton City Council","http://opendatacommunities.org/id/metropolitan-district-council/wolverhampton","700341","Acs Business Supplies Limited","SINV00508875","8.40","Stationery","130246343","27/03/2019","Community Financial Support","Direct Payments","R4308"
"Wolverhampton City Council","http://opendatacommunities.org/id/metropolitan-district-council/wolverhampton","700341","Acs Business Supplies Limited","SINV00319439","12.68","Stationery","130120129","27/03/2019","Adult Education","Direct Delivery Team ( L.& D.)","R4308"
"Wolverhampton City Council","http://opendatacommunities.org/id/metropolitan-district-council/wolverhampton","700341","Acs Business Supplies Limited","SINV00509638","173.99","Stationery","130246764","27/03/2019","Specialist Support","Key To Inspiration","R4308"
"Wolverhampton City Council","http://opendatacommunities.org/id/metropolitan-district-council/wolverhampton","700341","Acs Business Supplies Limited","SINV00507249","42.98","Stationery","130245980","27/03/2019","Community Financial Support","Financial Assessments","R4308"
"Wolverhampton City Council","http://opendatacommunities.org/id/metropolitan-district-council/wolverhampton","700341","Acs Business Supplies Limited","SINV00508744","8.99","Stationery","130246340","27/03/2019","Governance Services","Business Support (Corporate Admin Review)","R4308"
"Wolverhampton City Council","http://opendatacommunities.org/id/metropolitan-district-council/wolverhampton","700341","Acs Business Supplies Limited","SINV00507924","69.68","Stationery","130245982","27/03/2019","Leisure Services","Bert Williams Leisure Centre","R4308"
"Wolverhampton City Council","http://opendatacommunities.org/id/metropolitan-district-council/wolverhampton","700341","Acs Business Supplies Limited","SINV00508743","72.68","Stationery","130246339","27/03/2019","Governance Services","Business Support (Corporate Admin Review)","R4308"
"Wolverhampton City Council","http://opendatacommunities.org/id/metropolitan-district-council/wolverhampton","700341","Acs Business Supplies Limited","SINV00502583","303.43","Stationery","130244185","27/03/2019","Governance Services","Business Support (Corporate Admin Review)","R4308"
"Wolverhampton City Council","http://opendatacommunities.org/id/metropolitan-district-council/wolverhampton","700341","Acs Business Supplies Limited","SINV00508876","37.43","Stationery","130246344","27/03/2019","Community Financial Support","Welfare Rights","R4308"
"Wolverhampton City Council","http://opendatacommunities.org/id/metropolitan-district-council/wolverhampton","700341","Acs Business Supplies Limited","SINV00503287","23.87","Stationery","130243588","01/03/2019","Learning Disability Provider","Duke Street Bungalows","R4308"
"Wolverhampton City Council","http://opendatacommunities.org/id/metropolitan-district-council/wolverhampton","700341","Acs Business Supplies Limited","SCRN00060833","-59.99","Stationery","130245687","08/03/2019","Skills","IMPACT","R4308"
"Wolverhampton City Council","http://opendatacommunities.org/id/metropolitan-district-council/wolverhampton","700341","Acs Business Supplies Limited","SINV00502481","1,170.46","Stationery","130244875","08/03/2019","Special Educational Needs","SEN Early Years Team","R4308"
"Wolverhampton City Council","http://opendatacommunities.org/id/metropolitan-district-council/wolverhampton","700341","Acs Business Supplies Limited","SINV00500717","50.51","Stationery","130242409","08/03/2019","Adults Assessment & Care Management North","Adult Services � North","R4308"
"Wolverhampton City Council","http://opendatacommunities.org/id/metropolitan-district-council/wolverhampton","700341","Acs Business Supplies Limited","SINV00503286","37.24","Stationery","130243587","01/03/2019","Governance Services","Business Support (Corporate Admin Review)","R4308"
"Wolverhampton City Council","http://opendatacommunities.org/id/metropolitan-district-council/wolverhampton","700341","Acs Business Supplies Limited","SINV00506937","4.99","Stationery","130245554","20/03/2019","Governance Services","Business Support (Corporate Admin Review)","R4308"
"Wolverhampton City Council","http://opendatacommunities.org/id/metropolitan-district-council/wolverhampton","700341","Acs Business Supplies Limited","SINV00506937","61.12","Stationery","130245554","20/03/2019","Governance Services","Business Support (Corporate Admin Review)","R4308"
"Wolverhampton City Council","http://opendatacommunities.org/id/metropolitan-district-council/wolverhampton","700341","Acs Business Supplies Limited","SINV00490641","346.99","Photocopier Charges - Consumables","130245546","06/03/2019","Corporate Communications","Communications & Marketing - General","R4306"
"Wolverhampton City Council","http://opendatacommunities.org/id/metropolitan-district-council/wolverhampton","700341","Acs Business Supplies Limited","SINV00503436","113.39","Stationery","130243744","06/03/2019","Safeguarding","Head of Service Quality and Safeguarding","R4308"
"Wolverhampton City Council","http://opendatacommunities.org/id/metropolitan-district-council/wolverhampton","700341","Acs Business Supplies Limited","SINV00503835","35.64","Stationery","130243746","06/03/2019","Governance Services","Business Support (Corporate Admin Review)","R4308"
"Wolverhampton City Council","http://opendatacommunities.org/id/metropolitan-district-council/wolverhampton","700341","Acs Business Supplies Limited","SINV00506434","3.01","Stationery","130245228","20/03/2019","Governance Services","Business Support (Corporate Admin Review)","R4308"
"Wolverhampton City Council","http://opendatacommunities.org/id/metropolitan-district-council/wolverhampton","700341","Acs Business Supplies Limited","SINV00506433","79.96","Stationery","130245227","20/03/2019","Governance Services","Business Support (Corporate Admin Review)","R4308"
"Wolverhampton City Council","http://opendatacommunities.org/id/metropolitan-district-council/wolverhampton","700341","Acs Business Supplies Limited","SINV00505366","59.26","Stationery","130244568","13/03/2019","Governance Services","Business Support (Corporate Admin Review)","R4308"
"Wolverhampton City Council","http://opendatacommunities.org/id/metropolitan-district-council/wolverhampton","700341","Acs Business Supplies Limited","SINV00505364","213.07","Stationery","130244566","13/03/2019","Special Educational Needs","SEN Sensory Inclusion","R4308"
"Wolverhampton City Council","http://opendatacommunities.org/id/metropolitan-district-council/wolverhampton","700341","Acs Business Supplies Limited","SINV00503888","66.75","Stationery","130243747","06/03/2019","Children & Young People In Care","Panel Expenses Fostering & Adoption","R4308"
"Wolverhampton City Council","http://opendatacommunities.org/id/metropolitan-district-council/wolverhampton","700341","Acs Business Supplies Limited","SINV00505854","118.65","Stationery","130244881","13/03/2019","Governance Services","Business Support (Corporate Admin Review)","R4308"
"Wolverhampton City Council","http://opendatacommunities.org/id/metropolitan-district-council/wolverhampton","700341","Acs Business Supplies Limited","SINV00505367","12.83","Stationery","130244569","13/03/2019","Customer Services","City Direct","R4308"
"Wolverhampton City Council","http://opendatacommunities.org/id/metropolitan-district-council/wolverhampton","700341","Acs Business Supplies Limited","SINV00504785","174.00","Comms - Postage","130244408","13/03/2019","Community Financial Support","Macmillan Welfare Rights Service","R4503"
"Wolverhampton City Council","http://opendatacommunities.org/id/metropolitan-district-council/wolverhampton","700341","Acs Business Supplies Limited","SINV00505365","34.17","Stationery","130244567","13/03/2019","Governance Services","Business Support (Corporate Admin Review)","R4308"
"Wolverhampton City Council","http://opendatacommunities.org/id/metropolitan-district-council/wolverhampton","700341","Acs Business Supplies Limited","SINV00505852","133.76","Stationery","130244879","13/03/2019","Customer Services","City Direct","R4308"
"Wolverhampton City Council","http://opendatacommunities.org/id/metropolitan-district-council/wolverhampton","700341","Acs Business Supplies Limited","SINV00504017","225.20","Stationery","130243969","06/03/2019","Customer Services","City Direct","R4308"
"Wolverhampton City Council","http://opendatacommunities.org/id/metropolitan-district-council/wolverhampton","700341","Acs Business Supplies Limited","SINV00505368","1,202.03","Stationery","130244570","13/03/2019","Governance Services","Business Support (Corporate Admin Review)","R4308"
"Wolverhampton City Council","http://opendatacommunities.org/id/metropolitan-district-council/wolverhampton","700341","Acs Business Supplies Limited","SINV00505368","108.95","Stationery","130244570","13/03/2019","Governance Services","Business Support (Corporate Admin Review)","R4308"
"Wolverhampton City Council","http://opendatacommunities.org/id/metropolitan-district-council/wolverhampton","700341","Acs Business Supplies Limited","SINV00506001","25.50","Stationery","130244882","13/03/2019","Governance Services","Business Support (Corporate Admin Review)","R4308"
"Wolverhampton City Council","http://opendatacommunities.org/id/metropolitan-district-council/wolverhampton","700341","Acs Business Supplies Limited","SCRN00060903","-44.64","Stationery","130243968","13/03/2019","Adult Education","Service Wide","R4308"
"Wolverhampton City Council","http://opendatacommunities.org/id/metropolitan-district-council/wolverhampton","700341","Acs Business Supplies Limited","SINV00505853","112.49","Stationery","130244880","13/03/2019","Governance Services","Business Support (Corporate Admin Review)","R4308"
"Wolverhampton City Council","http://opendatacommunities.org/id/metropolitan-district-council/wolverhampton","700341","Acs Business Supplies Limited","SINV00505752","59.69","Stationery","130244877","13/03/2019","Audit Services","Health & Safety","R4308"
"Wolverhampton City Council","http://opendatacommunities.org/id/metropolitan-district-council/wolverhampton","700341","Acs Business Supplies Limited","SINV00504783","36.33","Stationery","130244406","13/03/2019","Governance Services","Business Support (Corporate Admin Review)","R4308"
"Wolverhampton City Council","http://opendatacommunities.org/id/metropolitan-district-council/wolverhampton","700341","Acs Business Supplies Limited","SINV00504784","19.76","Stationery","130244407","13/03/2019","Governance Services","Business Support (Corporate Admin Review)","R4308"
"Wolverhampton City Council","http://opendatacommunities.org/id/metropolitan-district-council/wolverhampton","700341","Acs Business Supplies Limited","SINV00502304","994.94","Stationery","130242874","15/03/2019","Adult Education","Talk English","R4308"
"Wolverhampton City Council","http://opendatacommunities.org/id/metropolitan-district-council/wolverhampton","700341","Acs Business Supplies Limited","SINV00507246","17.98","Stationery","130245977","27/03/2019","Bereavement Services","Cemeteries","R4308"
"Wolverhampton City Council","http://opendatacommunities.org/id/metropolitan-district-council/wolverhampton","700341","Acs Business Supplies Limited","SINV00509228","296.86","Stationery","130246762","27/03/2019","Governance Services","Business Support (Corporate Admin Review)","R4308"
"Wolverhampton City Council","http://opendatacommunities.org/id/metropolitan-district-council/wolverhampton","700341","Acs Business Supplies Limited","SINV00508290","94.99","Stationery","130246338","27/03/2019","Revenues & Benefits","Revenues","R4308"
"Wolverhampton City Council","http://opendatacommunities.org/id/metropolitan-district-council/wolverhampton","700341","Acs Business Supplies Limited","SINV00507247","41.77","Stationery","130245978","27/03/2019","Revenues & Benefits","Revenues","R4308"
"Wolverhampton City Council","http://opendatacommunities.org/id/metropolitan-district-council/wolverhampton","700341","Acs Business Supplies Limited","SINV00505753","198.28","Stationery","130244878","13/03/2019","Governance Services","Business Support (Corporate Admin Review)","R4308"
"Wolverhampton City Council","http://opendatacommunities.org/id/metropolitan-district-council/wolverhampton","700341","Acs Business Supplies Limited","SINV00504018","53.34","Stationery","130243970","13/03/2019","Governance Services","Business Support (Corporate Admin Review)","R4308"
"Wolverhampton City Council","http://opendatacommunities.org/id/metropolitan-district-council/wolverhampton","700341","Acs Business Supplies Limited","SINV00503328","93.50","Stationery","130243743","13/03/2019","Governance Services","Business Support (Corporate Admin Review)","R4308"
"Wolverhampton City Council","http://opendatacommunities.org/id/metropolitan-district-council/wolverhampton","700341","Acs Business Supplies Limited","SINV00505751","159.92","Stationery","130244876","13/03/2019","Governance Services","Business Support (Corporate Admin Review)","R4308"
"Wolverhampton City Council","http://opendatacommunities.org/id/metropolitan-district-council/wolverhampton","700693","Adept Security Systems Limited","SI-28266","254.31","Equipment - R & M","190575139","20/03/2019","Fleet Services","Fleet Management","R4003"
"Wolverhampton City Council","http://opendatacommunities.org/id/metropolitan-district-council/wolverhampton","700715","Adoption Matters Northwest","190938","95.10","Direct Work With Children","130244752","06/03/2019","Children & Young People In Care","Adoption Support Fund","R6310"
"Wolverhampton City Council","http://opendatacommunities.org/id/metropolitan-district-council/wolverhampton","700715","Adoption Matters Northwest","190938","96.90","Direct Work With Children","130244752","06/03/2019","Children & Young People In Care","Adoption and Residence Team & Allowances","R6310"
"Wolverhampton City Council","http://opendatacommunities.org/id/metropolitan-district-council/wolverhampton","700726","Adoption U.K.","400437","52.00","Subscriptions","130247540","20/03/2019","Children & Young People In Care","Adoption and Residence Team & Allowances","R4701"
"Wolverhampton City Council","http://opendatacommunities.org/id/metropolitan-district-council/wolverhampton","700770","Adt Fire And Security PLC","36805790-02","56.00","Fixtures and Fittings - R&M","130242106","20/03/2019","Maintenance Programme","Centralised R&M","R2502"
"Wolverhampton City Council","http://opendatacommunities.org/id/metropolitan-district-council/wolverhampton","700770","Adt Fire And Security PLC","37720621-02","1,230.66","Fixtures and Fittings - R&M","130242110","20/03/2019","Maintenance Programme","Centralised R&M","R2502"
"Wolverhampton City Council","http://opendatacommunities.org/id/metropolitan-district-council/wolverhampton","700770","Adt Fire And Security PLC","40459818-02","178.41","Fixtures and Fittings - R&M","130240465","20/03/2019","Maintenance Programme","Centralised R&M","R2502"
"Wolverhampton City Council","http://opendatacommunities.org/id/metropolitan-district-council/wolverhampton","700770","Adt Fire And Security PLC","40723677-02","224.00","Services - Security","130246171","20/03/2019","Maintenance Programme","Centralised R&M","R4405"
"Wolverhampton City Council","http://opendatacommunities.org/id/metropolitan-district-council/wolverhampton","700770","Adt Fire And Security PLC","36538727-02","233.00","Fixtures and Fittings - R&M","130244754","15/03/2019","Maintenance Programme","Centralised R&M","R2502"
"Wolverhampton City Council","http://opendatacommunities.org/id/metropolitan-district-council/wolverhampton","700770","Adt Fire And Security PLC","40730453-02","-163.00","Fixtures and Fittings - R&M","130246345","27/03/2019","Maintenance Programme","Centralised R&M","R2502"
"Wolverhampton City Council","http://opendatacommunities.org/id/metropolitan-district-council/wolverhampton","700770","Adt Fire And Security PLC","35132213-02","495.50","Fixtures and Fittings - R&M","130245399","13/03/2019","Maintenance Programme","Centralised R&M","R2502"
"Wolverhampton City Council","http://opendatacommunities.org/id/metropolitan-district-council/wolverhampton","700770","Adt Fire And Security PLC","38017712-02","56.00","Services - Security","130249038","27/03/2019","Maintenance Programme","Centralised R&M","R4405"
"Wolverhampton City Council","http://opendatacommunities.org/id/metropolitan-district-council/wolverhampton","700770","Adt Fire And Security PLC","40729430-02","93.00","Services - Security","130245983","27/03/2019","Maintenance Programme","Centralised R&M","R4405"
"Wolverhampton City Council","http://opendatacommunities.org/id/metropolitan-district-council/wolverhampton","700770","Adt Fire And Security PLC","38262336-02","-20.36","Fixtures and Fittings - R&M","130245401","13/03/2019","Maintenance Programme","Centralised R&M","R2502"
"Wolverhampton City Council","http://opendatacommunities.org/id/metropolitan-district-council/wolverhampton","700770","Adt Fire And Security PLC","40484095-02","1,860.00","Equipment - Purchase","130244275","13/03/2019","Maintenance Programme","Centralised R&M","R4000"
"Wolverhampton City Council","http://opendatacommunities.org/id/metropolitan-district-council/wolverhampton","700770","Adt Fire And Security PLC","40726948-02","74.31","Fixtures and Fittings - R&M","130245846","27/03/2019","Maintenance Programme","Centralised R&M","R2502"
"Wolverhampton City Council","http://opendatacommunities.org/id/metropolitan-district-council/wolverhampton","700770","Adt Fire And Security PLC","40726500-02","2,100.00","Services - Security","130247404","27/03/2019","Maintenance Programme","Centralised R&M","R4405"
"Wolverhampton City Council","http://opendatacommunities.org/id/metropolitan-district-council/wolverhampton","700770","Adt Fire And Security PLC","35300071-02","317.49","Services - Security","130248583","27/03/2019","Maintenance Programme","Centralised R&M","R4405"
"Wolverhampton City Council","http://opendatacommunities.org/id/metropolitan-district-council/wolverhampton","700770","Adt Fire And Security PLC","40703961-02","151.00","Services - Security","130247173","27/03/2019","Maintenance Programme","Centralised R&M","R4405"
"Wolverhampton City Council","http://opendatacommunities.org/id/metropolitan-district-council/wolverhampton","700770","Adt Fire And Security PLC","38017712-02RE-ISSUE","56.00","Services - Security","130248865","27/03/2019","Maintenance Programme","Centralised R&M","R4405"
"Wolverhampton City Council","http://opendatacommunities.org/id/metropolitan-district-council/wolverhampton","700770","Adt Fire And Security PLC","40475609-02","259.00","Services - Security","130241967","27/03/2019","Maintenance Programme","Centralised R&M","R4405"
"Wolverhampton City Council","http://opendatacommunities.org/id/metropolitan-district-council/wolverhampton","700770","Adt Fire And Security PLC","35001549-02","670.61","Fixtures and Fittings - R&M","130244572","13/03/2019","Maintenance Programme","Centralised R&M","R2502"
"Wolverhampton City Council","http://opendatacommunities.org/id/metropolitan-district-council/wolverhampton","700770","Adt Fire And Security PLC","36029221-02","274.37","Services - Security","130245400","13/03/2019","Maintenance Programme","Centralised R&M","R4405"
"Wolverhampton City Council","http://opendatacommunities.org/id/metropolitan-district-council/wolverhampton","700770","Adt Fire And Security PLC","34748082-02","2,838.74","Fixtures and Fittings - R&M","130244571","13/03/2019","Maintenance Programme","Centralised R&M","R2502"
"Wolverhampton City Council","http://opendatacommunities.org/id/metropolitan-district-council/wolverhampton","700770","Adt Fire And Security PLC","40450445-02","1,040.65","Fixtures and Fittings - R&M","130240177","20/03/2019","Maintenance Programme","Centralised R&M","R2502"
"Wolverhampton City Council","http://opendatacommunities.org/id/metropolitan-district-council/wolverhampton","700770","Adt Fire And Security PLC","40467266-02","-303.40","Fixtures and Fittings - R&M","130242111","27/03/2019","Maintenance Programme","Centralised R&M","R2502"
"Wolverhampton City Council","http://opendatacommunities.org/id/metropolitan-district-council/wolverhampton","700770","Adt Fire And Security PLC","40732869-02","437.46","Services - Security","130246346","27/03/2019","Maintenance Programme","Centralised R&M","R4405"
"Wolverhampton City Council","http://opendatacommunities.org/id/metropolitan-district-council/wolverhampton","700770","Adt Fire And Security PLC","39718607-02","353.79","Fixtures and Fittings - R&M","130244574","15/03/2019","Maintenance Programme","Centralised R&M","R2502"
"Wolverhampton City Council","http://opendatacommunities.org/id/metropolitan-district-council/wolverhampton","700770","Adt Fire And Security PLC","39718608-02","130.38","Fixtures and Fittings - R&M","130244575","15/03/2019","Maintenance Programme","Centralised R&M","R2502"
"Wolverhampton City Council","http://opendatacommunities.org/id/metropolitan-district-council/wolverhampton","700770","Adt Fire And Security PLC","40716982-02","8,679.92","Fixtures and Fittings - R&M","130244885","15/03/2019","Maintenance Programme","Centralised R&M","R2502"
"Wolverhampton City Council","http://opendatacommunities.org/id/metropolitan-district-council/wolverhampton","700770","Adt Fire And Security PLC","37025935-02","69.00","Fixtures and Fittings - R&M","130244755","15/03/2019","Maintenance Programme","Centralised R&M","R2502"
"Wolverhampton City Council","http://opendatacommunities.org/id/metropolitan-district-council/wolverhampton","700770","Adt Fire And Security PLC","40716980-02","159.19","Fixtures and Fittings - R&M","130245556","15/03/2019","Maintenance Programme","Centralised R&M","R2502"
"Wolverhampton City Council","http://opendatacommunities.org/id/metropolitan-district-council/wolverhampton","700770","Adt Fire And Security PLC","40716981-02","135.01","R&M - Departmental planned (internal)","130244884","15/03/2019","Maintenance Programme","Centralised R&M","R2000"
"Wolverhampton City Council","http://opendatacommunities.org/id/metropolitan-district-council/wolverhampton","700770","Adt Fire And Security PLC","35501859-02","432.58","Fixtures and Fittings - R&M","130244573","15/03/2019","Maintenance Programme","Centralised R&M","R2502"
"Wolverhampton City Council","http://opendatacommunities.org/id/metropolitan-district-council/wolverhampton","700979","Af Blakemore/Blakemore Foodservice","6139636","322.90","Provisions (Not for resale)","130245427","06/03/2019","Older People Provider Services","Bradley Lodge Resource Centre","R4101"
"Wolverhampton City Council","http://opendatacommunities.org/id/metropolitan-district-council/wolverhampton","700979","Af Blakemore/Blakemore Foodservice","6150481","168.78","Provisions (Not for resale)","130245430","06/03/2019","Older People Provider Services","Bradley Lodge Resource Centre","R4101"
"Wolverhampton City Council","http://opendatacommunities.org/id/metropolitan-district-council/wolverhampton","700979","Af Blakemore/Blakemore Foodservice","6118845","307.11","Provisions (Not for resale)","130245562","06/03/2019","Older People Provider Services","Bradley Lodge Resource Centre","R4101"
"Wolverhampton City Council","http://opendatacommunities.org/id/metropolitan-district-council/wolverhampton","700979","Af Blakemore/Blakemore Foodservice","6216382","329.35","Provisions (Resale)","130245581","20/03/2019","Visitor Economy","Bantock - Tea Rooms","R4102"
"Wolverhampton City Council","http://opendatacommunities.org/id/metropolitan-district-council/wolverhampton","700979","Af Blakemore/Blakemore Foodservice","WCC000482","589.99","Provisions (Resale)","130242694","20/03/2019","Catering","West Park Tea Room","R4102"
"Wolverhampton City Council","http://opendatacommunities.org/id/metropolitan-district-council/wolverhampton","700979","Af Blakemore/Blakemore Foodservice","6203372","7.10","Provisions (Resale)","130245575","20/03/2019","Visitor Economy","Bantock - Tea Rooms","R4102"
"Wolverhampton City Council","http://opendatacommunities.org/id/metropolitan-district-council/wolverhampton","700979","Af Blakemore/Blakemore Foodservice","6083434","70.69","Provisions (Not for resale)","130245411","06/03/2019","Older People Provider Services","Bradley Lodge Resource Centre","R4101"
"Wolverhampton City Council","http://opendatacommunities.org/id/metropolitan-district-council/wolverhampton","700979","Af Blakemore/Blakemore Foodservice","6166788","378.14","Provisions (Not for resale)","130245440","06/03/2019","Older People Provider Services","Bradley Lodge Resource Centre","R4101"
"Wolverhampton City Council","http://opendatacommunities.org/id/metropolitan-district-council/wolverhampton","700979","Af Blakemore/Blakemore Foodservice","6101711","150.50","Provisions (Not for resale)","130245419","06/03/2019","Older People Provider Services","Bradley Lodge Resource Centre","R4101"
"Wolverhampton City Council","http://opendatacommunities.org/id/metropolitan-district-council/wolverhampton","700979","Af Blakemore/Blakemore Foodservice","6101698","189.88","Provisions (Not for resale)","130245418","06/03/2019","Older People Provider Services","Bradley Lodge Resource Centre","R4101"
"Wolverhampton City Council","http://opendatacommunities.org/id/metropolitan-district-council/wolverhampton","700979","Af Blakemore/Blakemore Foodservice","6208206","136.22","Provisions (Resale)","130245578","20/03/2019","Visitor Economy","Bantock - Tea Rooms","R4102"
"Wolverhampton City Council","http://opendatacommunities.org/id/metropolitan-district-council/wolverhampton","700979","Af Blakemore/Blakemore Foodservice","6207179","10.93","Provisions (Resale)","130245577","20/03/2019","Visitor Economy","Bantock - Tea Rooms","R4102"
"Wolverhampton City Council","http://opendatacommunities.org/id/metropolitan-district-council/wolverhampton","700979","Af Blakemore/Blakemore Foodservice","6203635","32.22","Provisions (Resale)","130245576","20/03/2019","Visitor Economy","Bantock - Tea Rooms","R4102"
"Wolverhampton City Council","http://opendatacommunities.org/id/metropolitan-district-council/wolverhampton","700979","Af Blakemore/Blakemore Foodservice","6203280","130.91","Provisions (Resale)","130245573","20/03/2019","Visitor Economy","Bantock - Tea Rooms","R4102"
"Wolverhampton City Council","http://opendatacommunities.org/id/metropolitan-district-council/wolverhampton","700979","Af Blakemore/Blakemore Foodservice","6214982","203.89","Provisions (Resale)","130245580","20/03/2019","Visitor Economy","Bantock - Tea Rooms","R4102"
"Wolverhampton City Council","http://opendatacommunities.org/id/metropolitan-district-council/wolverhampton","700979","Af Blakemore/Blakemore Foodservice","6139629","53.41","Provisions (Not for resale)","130245426","06/03/2019","Older People Provider Services","Bradley Lodge Resource Centre","R4101"
"Wolverhampton City Council","http://opendatacommunities.org/id/metropolitan-district-council/wolverhampton","700979","Af Blakemore/Blakemore Foodservice","6169972","22.99","Provisions (Not for resale)","130245441","06/03/2019","Older People Provider Services","Bradley Lodge Resource Centre","R4101"
"Wolverhampton City Council","http://opendatacommunities.org/id/metropolitan-district-council/wolverhampton","700979","Af Blakemore/Blakemore Foodservice","WCC000480","727.29","Provisions (Resale)","130242692","20/03/2019","Catering","West Park Tea Room","R4102"
"Wolverhampton City Council","http://opendatacommunities.org/id/metropolitan-district-council/wolverhampton","700979","Af Blakemore/Blakemore Foodservice","6211544","476.82","Provisions (Resale)","130245579","20/03/2019","Visitor Economy","Bantock - Tea Rooms","R4102"
"Wolverhampton City Council","http://opendatacommunities.org/id/metropolitan-district-council/wolverhampton","700979","Af Blakemore/Blakemore Foodservice","WCC000478","256.12","Provisions (Resale)","130242690","20/03/2019","Catering","West Park Tea Room","R4102"
"Wolverhampton City Council","http://opendatacommunities.org/id/metropolitan-district-council/wolverhampton","700979","Af Blakemore/Blakemore Foodservice","6129237","154.77","Provisions (Not for resale)","130245424","06/03/2019","Older People Provider Services","Bradley Lodge Resource Centre","R4101"
"Wolverhampton City Council","http://opendatacommunities.org/id/metropolitan-district-council/wolverhampton","700979","Af Blakemore/Blakemore Foodservice","6118841","71.05","Provisions (Not for resale)","130245422","06/03/2019","Older People Provider Services","Bradley Lodge Resource Centre","R4101"
"Wolverhampton City Council","http://opendatacommunities.org/id/metropolitan-district-council/wolverhampton","700979","Af Blakemore/Blakemore Foodservice","6111292","203.62","Provisions (Not for resale)","130245560","06/03/2019","Older People Provider Services","Bradley Lodge Resource Centre","R4101"
"Wolverhampton City Council","http://opendatacommunities.org/id/metropolitan-district-council/wolverhampton","700979","Af Blakemore/Blakemore Foodservice","6093825","30.97","Provisions (Not for resale)","130245415","06/03/2019","Older People Provider Services","Blakenhall Resource Centre","R4101"
"Wolverhampton City Council","http://opendatacommunities.org/id/metropolitan-district-council/wolverhampton","700979","Af Blakemore/Blakemore Foodservice","6203283","104.08","Provisions (Resale)","130245574","15/03/2019","Visitor Economy","Art Gallery Tea Room","R4102"
"Wolverhampton City Council","http://opendatacommunities.org/id/metropolitan-district-council/wolverhampton","700979","Af Blakemore/Blakemore Foodservice","WCC000462","425.80","Provisions (Resale)","130240883","15/03/2019","Catering","Meals on Wheels","R4102"
"Wolverhampton City Council","http://opendatacommunities.org/id/metropolitan-district-council/wolverhampton","700979","Af Blakemore/Blakemore Foodservice","WCC000479","605.02","Provisions (Resale)","130242691","27/03/2019","Catering","West Park Tea Room","R4102"
"Wolverhampton City Council","http://opendatacommunities.org/id/metropolitan-district-council/wolverhampton","700979","Af Blakemore/Blakemore Foodservice","6094648","-1.53","Provisions (Resale)","130245558","13/03/2019","Visitor Economy","Bantock - Tea Rooms","R4102"
"Wolverhampton City Council","http://opendatacommunities.org/id/metropolitan-district-council/wolverhampton","700979","Af Blakemore/Blakemore Foodservice","6013339","8.86","Provisions (Resale)","130245404","13/03/2019","Visitor Economy","Bantock - Tea Rooms","R4102"
"Wolverhampton City Council","http://opendatacommunities.org/id/metropolitan-district-council/wolverhampton","700979","Af Blakemore/Blakemore Foodservice","6105592","338.24","Provisions (Resale)","130245420","13/03/2019","Visitor Economy","Bantock - Tea Rooms","R4102"
"Wolverhampton City Council","http://opendatacommunities.org/id/metropolitan-district-council/wolverhampton","700979","Af Blakemore/Blakemore Foodservice","6090530","152.73","Provisions (Resale)","130245414","13/03/2019","Visitor Economy","Bantock - Tea Rooms","R4102"
"Wolverhampton City Council","http://opendatacommunities.org/id/metropolitan-district-council/wolverhampton","700979","Af Blakemore/Blakemore Foodservice","6148730","292.24","Provisions (Resale)","130245429","13/03/2019","Visitor Economy","Bantock - Tea Rooms","R4102"
"Wolverhampton City Council","http://opendatacommunities.org/id/metropolitan-district-council/wolverhampton","700979","Af Blakemore/Blakemore Foodservice","6173592","113.38","Provisions (Resale)","130245446","13/03/2019","Visitor Economy","Bantock - Tea Rooms","R4102"
"Wolverhampton City Council","http://opendatacommunities.org/id/metropolitan-district-council/wolverhampton","700979","Af Blakemore/Blakemore Foodservice","6171682","33.51","Provisions (Resale)","130245443","13/03/2019","Visitor Economy","Art Gallery Tea Room","R4102"
"Wolverhampton City Council","http://opendatacommunities.org/id/metropolitan-district-council/wolverhampton","700979","Af Blakemore/Blakemore Foodservice","6199435","164.07","Provisions (Resale)","130245570","13/03/2019","Visitor Economy","Bantock - Tea Rooms","R4102"
"Wolverhampton City Council","http://opendatacommunities.org/id/metropolitan-district-council/wolverhampton","700979","Af Blakemore/Blakemore Foodservice","6143966","207.11","Provisions (Resale)","130245428","13/03/2019","Visitor Economy","Bantock - Tea Rooms","R4102"
"Wolverhampton City Council","http://opendatacommunities.org/id/metropolitan-district-council/wolverhampton","700979","Af Blakemore/Blakemore Foodservice","6199456","217.64","Provisions (Resale)","130245571","13/03/2019","Visitor Economy","Bantock - Tea Rooms","R4102"
"Wolverhampton City Council","http://opendatacommunities.org/id/metropolitan-district-council/wolverhampton","700979","Af Blakemore/Blakemore Foodservice","5952436","23.80","Provisions (Not for resale)","130246172","13/03/2019","Local Economy","Blakenhall Community & Healthy Living Centre","R4101"
"Wolverhampton City Council","http://opendatacommunities.org/id/metropolitan-district-council/wolverhampton","700979","Af Blakemore/Blakemore Foodservice","6075598","237.46","Provisions (Resale)","130245408","13/03/2019","Visitor Economy","Bantock - Tea Rooms","R4102"
"Wolverhampton City Council","http://opendatacommunities.org/id/metropolitan-district-council/wolverhampton","700979","Af Blakemore/Blakemore Foodservice","6126331","128.66","Provisions (Resale)","130245564","13/03/2019","Visitor Economy","Bantock - Tea Rooms","R4102"
"Wolverhampton City Council","http://opendatacommunities.org/id/metropolitan-district-council/wolverhampton","700979","Af Blakemore/Blakemore Foodservice","6185599","70.52","Provisions (Resale)","130245453","13/03/2019","Visitor Economy","Art Gallery Tea Room","R4102"
"Wolverhampton City Council","http://opendatacommunities.org/id/metropolitan-district-council/wolverhampton","700979","Af Blakemore/Blakemore Foodservice","6084152","371.15","Provisions (Resale)","130245412","13/03/2019","Visitor Economy","Bantock - Tea Rooms","R4102"
"Wolverhampton City Council","http://opendatacommunities.org/id/metropolitan-district-council/wolverhampton","700979","Af Blakemore/Blakemore Foodservice","6182356","6.44","Provisions (Resale)","130245451","13/03/2019","Visitor Economy","Art Gallery Tea Room","R4102"
"Wolverhampton City Council","http://opendatacommunities.org/id/metropolitan-district-council/wolverhampton","700979","Af Blakemore/Blakemore Foodservice","6157844","219.94","Provisions (Resale)","130245432","13/03/2019","Visitor Economy","Bantock - Tea Rooms","R4102"
"Wolverhampton City Council","http://opendatacommunities.org/id/metropolitan-district-council/wolverhampton","700979","Af Blakemore/Blakemore Foodservice","6159792","144.22","Provisions (Resale)","130245436","13/03/2019","Visitor Economy","Bantock - Tea Rooms","R4102"
"Wolverhampton City Council","http://opendatacommunities.org/id/metropolitan-district-council/wolverhampton","700979","Af Blakemore/Blakemore Foodservice","6182341","186.21","Provisions (Resale)","130245449","13/03/2019","Catering","Education Catering - General Overheads","R4102"
"Wolverhampton City Council","http://opendatacommunities.org/id/metropolitan-district-council/wolverhampton","700979","Af Blakemore/Blakemore Foodservice","6164913","268.06","Provisions (Resale)","130245438","13/03/2019","Visitor Economy","Bantock - Tea Rooms","R4102"
"Wolverhampton City Council","http://opendatacommunities.org/id/metropolitan-district-council/wolverhampton","700979","Af Blakemore/Blakemore Foodservice","6135933","186.36","Provisions (Resale)","130245565","13/03/2019","Visitor Economy","Bantock - Tea Rooms","R4102"
"Wolverhampton City Council","http://opendatacommunities.org/id/metropolitan-district-council/wolverhampton","700979","Af Blakemore/Blakemore Foodservice","WCC000457","564.29","Provisions (Resale)","130239302","27/03/2019","Catering","Meals on Wheels","R4102"
"Wolverhampton City Council","http://opendatacommunities.org/id/metropolitan-district-council/wolverhampton","700979","Af Blakemore/Blakemore Foodservice","6065214","347.79","Provisions (Resale)","130245406","13/03/2019","Catering","Education Catering - General Overheads","R4102"
"Wolverhampton City Council","http://opendatacommunities.org/id/metropolitan-district-council/wolverhampton","700979","Af Blakemore/Blakemore Foodservice","6099723","212.73","Provisions (Resale)","130245417","13/03/2019","Visitor Economy","Bantock - Tea Rooms","R4102"
"Wolverhampton City Council","http://opendatacommunities.org/id/metropolitan-district-council/wolverhampton","700979","Af Blakemore/Blakemore Foodservice","6080317","196.01","Provisions (Resale)","130245410","13/03/2019","Visitor Economy","Bantock - Tea Rooms","R4102"
"Wolverhampton City Council","http://opendatacommunities.org/id/metropolitan-district-council/wolverhampton","700979","Af Blakemore/Blakemore Foodservice","6096143","243.12","Provisions (Resale)","130245416","13/03/2019","Visitor Economy","Bantock - Tea Rooms","R4102"
"Wolverhampton City Council","http://opendatacommunities.org/id/metropolitan-district-council/wolverhampton","700979","Af Blakemore/Blakemore Foodservice","6109157","121.66","Provisions (Resale)","130245421","13/03/2019","Visitor Economy","Bantock - Tea Rooms","R4102"
"Wolverhampton City Council","http://opendatacommunities.org/id/metropolitan-district-council/wolverhampton","700979","Af Blakemore/Blakemore Foodservice","6165087","251.00","Provisions (Resale)","130245439","13/03/2019","Catering","Education Catering - General Overheads","R4102"
"Wolverhampton City Council","http://opendatacommunities.org/id/metropolitan-district-council/wolverhampton","700979","Af Blakemore/Blakemore Foodservice","6182346","15.02","Provisions (Resale)","130245450","13/03/2019","Visitor Economy","Art Gallery Tea Room","R4102"
"Wolverhampton City Council","http://opendatacommunities.org/id/metropolitan-district-council/wolverhampton","700979","Af Blakemore/Blakemore Foodservice","6128224","226.32","Provisions (Resale)","130245423","13/03/2019","Visitor Economy","Bantock - Tea Rooms","R4102"
"Wolverhampton City Council","http://opendatacommunities.org/id/metropolitan-district-council/wolverhampton","700979","Af Blakemore/Blakemore Foodservice","6191042","313.02","Provisions (Resale)","130245567","13/03/2019","Visitor Economy","Bantock - Tea Rooms","R4102"
"Wolverhampton City Council","http://opendatacommunities.org/id/metropolitan-district-council/wolverhampton","700979","Af Blakemore/Blakemore Foodservice","6137666","274.04","Provisions (Resale)","130245566","13/03/2019","Catering","Education Catering - General Overheads","R4102"
"Wolverhampton City Council","http://opendatacommunities.org/id/metropolitan-district-council/wolverhampton","700979","Af Blakemore/Blakemore Foodservice","16083111","-564.29","Provisions (Resale)","130248423","27/03/2019","Catering","Meals on Wheels","R4102"
"Wolverhampton City Council","http://opendatacommunities.org/id/metropolitan-district-council/wolverhampton","700979","Af Blakemore/Blakemore Foodservice","6099871","288.63","Provisions (Resale)","130245559","13/03/2019","Catering","Education Catering - General Overheads","R4102"
"Wolverhampton City Council","http://opendatacommunities.org/id/metropolitan-district-council/wolverhampton","700979","Af Blakemore/Blakemore Foodservice","6118392","260.10","Provisions (Resale)","130245561","13/03/2019","Visitor Economy","Bantock - Tea Rooms","R4102"
"Wolverhampton City Council","http://opendatacommunities.org/id/metropolitan-district-council/wolverhampton","700979","Af Blakemore/Blakemore Foodservice","6083025","509.20","Provisions (Resale)","130245557","13/03/2019","Catering","Education Catering - General Overheads","R4102"
"Wolverhampton City Council","http://opendatacommunities.org/id/metropolitan-district-council/wolverhampton","700979","Af Blakemore/Blakemore Foodservice","6124130","138.30","Provisions (Resale)","130245563","13/03/2019","Visitor Economy","Bantock - Tea Rooms","R4102"
"Wolverhampton City Council","http://opendatacommunities.org/id/metropolitan-district-council/wolverhampton","700979","Af Blakemore/Blakemore Foodservice","6173529","91.81","Provisions (Resale)","130245445","13/03/2019","Catering","Education Catering - General Overheads","R4102"
"Wolverhampton City Council","http://opendatacommunities.org/id/metropolitan-district-council/wolverhampton","700979","Af Blakemore/Blakemore Foodservice","6157850","4.31","Provisions (Resale)","130245433","13/03/2019","Visitor Economy","Bantock - Tea Rooms","R4102"
"Wolverhampton City Council","http://opendatacommunities.org/id/metropolitan-district-council/wolverhampton","700979","Af Blakemore/Blakemore Foodservice","6182160","223.17","Provisions (Resale)","130245448","13/03/2019","Visitor Economy","Bantock - Tea Rooms","R4102"
"Wolverhampton City Council","http://opendatacommunities.org/id/metropolitan-district-council/wolverhampton","700979","Af Blakemore/Blakemore Foodservice","6193923","131.33","Provisions (Resale)","130245568","13/03/2019","Visitor Economy","Bantock - Tea Rooms","R4102"
"Wolverhampton City Council","http://opendatacommunities.org/id/metropolitan-district-council/wolverhampton","700979","Af Blakemore/Blakemore Foodservice","6200982","20.18","Provisions (Resale)","130245572","13/03/2019","Visitor Economy","Bantock - Tea Rooms","R4102"
"Wolverhampton City Council","http://opendatacommunities.org/id/metropolitan-district-council/wolverhampton","700979","Af Blakemore/Blakemore Foodservice","6196821","246.97","Provisions (Resale)","130245569","13/03/2019","Visitor Economy","Bantock - Tea Rooms","R4102"
"Wolverhampton City Council","http://opendatacommunities.org/id/metropolitan-district-council/wolverhampton","700979","Af Blakemore/Blakemore Foodservice","WCC000484","198.98","Provisions (Resale)","130242696","08/03/2019","Catering","West Park Tea Room","R4102"
"Wolverhampton City Council","http://opendatacommunities.org/id/metropolitan-district-council/wolverhampton","700979","Af Blakemore/Blakemore Foodservice","WCC000485","96.93","Provisions (Resale)","130242697","08/03/2019","Catering","West Park Tea Room","R4102"
"Wolverhampton City Council","http://opendatacommunities.org/id/metropolitan-district-council/wolverhampton","700979","Af Blakemore/Blakemore Foodservice","5989953","-129.18","Provisions (Not for resale)","130245403","01/03/2019","Older People Provider Services","Bradley Lodge Resource Centre","R4101"
"Wolverhampton City Council","http://opendatacommunities.org/id/metropolitan-district-council/wolverhampton","700979","Af Blakemore/Blakemore Foodservice","6158185","58.67","Provisions (Not for resale)","130245434","01/03/2019","Local Economy","Central Children�s Library","R4101"
"Wolverhampton City Council","http://opendatacommunities.org/id/metropolitan-district-council/wolverhampton","700979","Af Blakemore/Blakemore Foodservice","6194633","22.94","Provisions (Not for resale)","130244187","01/03/2019","Older People Provider Services","Blakenhall Resource Centre","R4101"
"Wolverhampton City Council","http://opendatacommunities.org/id/metropolitan-district-council/wolverhampton","700979","Af Blakemore/Blakemore Foodservice","6202767","176.79","Provisions (Not for resale)","130244409","08/03/2019","Older People Provider Services","Blakenhall Resource Centre","R4101"
"Wolverhampton City Council","http://opendatacommunities.org/id/metropolitan-district-council/wolverhampton","700979","Af Blakemore/Blakemore Foodservice","6076687","126.19","Provisions (Not for resale)","130245409","01/03/2019","Older People Provider Services","Bradley Lodge Resource Centre","R4101"
"Wolverhampton City Council","http://opendatacommunities.org/id/metropolitan-district-council/wolverhampton","700979","Af Blakemore/Blakemore Foodservice","6073182","-8.00","Provisions (Not for resale)","130245407","01/03/2019","Older People Provider Services","Bradley Lodge Resource Centre","R4101"
"Wolverhampton City Council","http://opendatacommunities.org/id/metropolitan-district-council/wolverhampton","701100","Aggregate Industries UK Limited","27763881","232.34","Materials","130242999","01/03/2019","Highways Maintenance","Patching","R4007"
"Wolverhampton City Council","http://opendatacommunities.org/id/metropolitan-district-council/wolverhampton","701155","Aidapt Bathrooms Limited","386576","1,175.00","Equipment - Purchase","130244410","01/03/2019","Older People Provider Services","ILS Stores","R4000"
"Wolverhampton City Council","http://opendatacommunities.org/id/metropolitan-district-council/wolverhampton","701155","Aidapt Bathrooms Limited","390561","27.50","Equipment - Purchase","130247174","13/03/2019","Older People Provider Services","ILS Stores","R4000"
"Wolverhampton City Council","http://opendatacommunities.org/id/metropolitan-district-council/wolverhampton","701155","Aidapt Bathrooms Limited","390561","99.00","Equipment - Purchase","130247174","13/03/2019","Older People Provider Services","ILS Stores","R4000"
"Wolverhampton City Council","http://opendatacommunities.org/id/metropolitan-district-council/wolverhampton","701155","Aidapt Bathrooms Limited","390561","1,175.00","Equipment - Purchase","130247174","13/03/2019","Older People Provider Services","ILS Stores","R4000"
"Wolverhampton City Council","http://opendatacommunities.org/id/metropolitan-district-council/wolverhampton","701210","Air Methods Limited","SI006932","478.72","Equipment - R & M","130246989","15/03/2019","Older People Provider Services","ILS Stores","R4003"
"Wolverhampton City Council","http://opendatacommunities.org/id/metropolitan-district-council/wolverhampton","701265","Airport Express West Midlands Limited","1838","1,200.00","Client Transport","130245984","06/03/2019","Special Educational Needs","Secondary- Transport","R3042"
"Wolverhampton City Council","http://opendatacommunities.org/id/metropolitan-district-council/wolverhampton","701276","Airport-Link","BDW141","1,390.48","Client Transport","130246347","06/03/2019","Special Educational Needs","Special - Transport","R3042"
"Wolverhampton City Council","http://opendatacommunities.org/id/metropolitan-district-council/wolverhampton","701342","AKW Medi-Care Limited","113590","-69.80","Equipment - Purchase","130241213","01/03/2019","Older People Provider Services","ILS Stores","R4000"
"Wolverhampton City Council","http://opendatacommunities.org/id/metropolitan-district-council/wolverhampton","701342","AKW Medi-Care Limited","1676847","101.80","Equipment - Purchase","130241214","01/03/2019","Older People Provider Services","ILS Stores","R4000"
"Wolverhampton City Council","http://opendatacommunities.org/id/metropolitan-district-council/wolverhampton","701388","Albrighton Medical Practice","FOS4190","91.48","Services - Professional Fees","190578393","27/03/2019","Children & Young People In Care","Fostering Team & Allowances","R4400"
"Wolverhampton City Council","http://opendatacommunities.org/id/metropolitan-district-council/wolverhampton","701388","Albrighton Medical Practice","FOS4191","91.48","Services - Professional Fees","190578394","27/03/2019","Children & Young People In Care","Fostering Team & Allowances","R4400"
"Wolverhampton City Council","http://opendatacommunities.org/id/metropolitan-district-council/wolverhampton","701393","Aldersley Church Early Learning Committee","TFT Spring 2019 Inst 2","1,848.67","TPP - Private Nursery Education Funding","190576181","20/03/2019","Early Years","Early Years Entitlement Funding for Disadvantaged 2 Year Olds","R5035"
"Wolverhampton City Council","http://opendatacommunities.org/id/metropolitan-district-council/wolverhampton","701393","Aldersley Church Early Learning Committee","EYPP Spring 2019","190.80","TPP - Private Nursery Education Funding","190578180","27/03/2019","Early Years","Early Years Pupil Premium","R5035"
"Wolverhampton City Council","http://opendatacommunities.org/id/metropolitan-district-council/wolverhampton","701393","Aldersley Church Early Learning Committee","NEF Spring 2019 INST 2","6,876.63","TPP - Private Nursery Education Funding","190578170","27/03/2019","Early Years","Early Years Universal Entitlement for 3 and 4 Year Olds","R5035"
"Wolverhampton City Council","http://opendatacommunities.org/id/metropolitan-district-council/wolverhampton","701394","Aldersley High Sch/Aldersley Acad Tr","P20221720190322","600.00","Grant Payments to Individuals","190577575","27/03/2019","Inclusion Support","Pupil Premium","R6402"
"Wolverhampton City Council","http://opendatacommunities.org/id/metropolitan-district-council/wolverhampton","701394","Aldersley High Sch/Aldersley Acad Tr","SEN Resource Base Spring Term 2019 - Aldersley","4,753.22","Grant Payments","190577236","27/03/2019","Central Education","High Needs Top Up Academies","R4700"
"Wolverhampton City Council","http://opendatacommunities.org/id/metropolitan-district-council/wolverhampton","701394","Aldersley High Sch/Aldersley Acad Tr","SEN Mainstream Top Ups Autumn Term 18 - Aldersley Academy","13,347.31","Grant Payments","190570864","08/03/2019","Central Education","High Needs Top Up Academies","R4700"
"Wolverhampton City Council","http://opendatacommunities.org/id/metropolitan-district-council/wolverhampton","701394","Aldersley High Sch/Aldersley Acad Tr","SEN Mainstream Top Ups Spring Term 19 - Aldersley Academy","15,547.94","Grant Payments","190570865","08/03/2019","Central Education","High Needs Top Up Academies","R4700"
"Wolverhampton City Council","http://opendatacommunities.org/id/metropolitan-district-council/wolverhampton","701397","Aldridge Trimming","33928","210.00","Equipment - Purchase","190571834","13/03/2019","Fleet Services","Fleet Management","R4000"
"Wolverhampton City Council","http://opendatacommunities.org/id/metropolitan-district-council/wolverhampton","701397","Aldridge Trimming","34001","240.00","Equipment - Purchase","190575118","20/03/2019","Fleet Services","Fleet Management","R4000"
"Wolverhampton City Council","http://opendatacommunities.org/id/metropolitan-district-council/wolverhampton","701399","Alemba Limited","INV00000811","2,497.25","Computing - Purchase of Software","130242700","13/03/2019","The Hub","Quality and Improvement","R4531"
"Wolverhampton City Council","http://opendatacommunities.org/id/metropolitan-district-council/wolverhampton","701417","All Saints Action Network Limited","TFT Spring 2019 Inst 2","6,791.04","TPP - Private Nursery Education Funding","190576181","20/03/2019","Early Years","Early Years Entitlement Funding for Disadvantaged 2 Year Olds","R5035"
"Wolverhampton City Council","http://opendatacommunities.org/id/metropolitan-district-council/wolverhampton","701417","All Saints Action Network Limited","NEF Spring 2019 INST 2","16,543.14","TPP - Private Nursery Education Funding","190578170","27/03/2019","Early Years","Early Years Universal Entitlement for 3 and 4 Year Olds","R5035"
"Wolverhampton City Council","http://opendatacommunities.org/id/metropolitan-district-council/wolverhampton","701417","All Saints Action Network Limited","EYPP Spring 2019","477.00","TPP - Private Nursery Education Funding","190578180","27/03/2019","Early Years","Early Years Pupil Premium","R5035"
"Wolverhampton City Council","http://opendatacommunities.org/id/metropolitan-district-council/wolverhampton","701417","All Saints Action Network Limited","112471","346.00","Room Hire","130245455","01/03/2019","Children & Young People In Care","Fostering Team & Allowances","R2201"
"Wolverhampton City Council","http://opendatacommunities.org/id/metropolitan-district-council/wolverhampton","701430","Allen-Martin Conservation Limited","37372","3,064.00","R&M - Departmental planned (external)","130246990","15/03/2019","Maintenance Programme","Centralised R&M","R2001"
"Wolverhampton City Council","http://opendatacommunities.org/id/metropolitan-district-council/wolverhampton","701437","Allsorts Office Supplies Limited","709780","110.00","Furniture","130246571","13/03/2019","Facilities Management","Civic Centre","R4004"
"Wolverhampton City Council","http://opendatacommunities.org/id/metropolitan-district-council/wolverhampton","701439","Allstar Business Solutions Limited","E2010898488","37.35","Petrol","190571286","08/03/2019","Fleet Services","Fleet Management","R3000"
"Wolverhampton City Council","http://opendatacommunities.org/id/metropolitan-district-council/wolverhampton","701439","Allstar Business Solutions Limited","E2010898488","302.51","Petrol","190571286","08/03/2019","Fleet Services","Fleet Management","R3000"
"Wolverhampton City Council","http://opendatacommunities.org/id/metropolitan-district-council/wolverhampton","701439","Allstar Business Solutions Limited","E2010959454","1.65","Petrol","190577183","22/03/2019","Fleet Services","Fleet Management","R3000"
"Wolverhampton City Council","http://opendatacommunities.org/id/metropolitan-district-council/wolverhampton","701439","Allstar Business Solutions Limited","E2010959454","608.77","Petrol","190577183","22/03/2019","Fleet Services","Fleet Management","R3000"
"Wolverhampton City Council","http://opendatacommunities.org/id/metropolitan-district-council/wolverhampton","701439","Allstar Business Solutions Limited","E2010960540","58.46","Petrol","190577184","22/03/2019","Fleet Services","Fleet Management","R3000"
"Wolverhampton City Council","http://opendatacommunities.org/id/metropolitan-district-council/wolverhampton","701439","Allstar Business Solutions Limited","E2010960541","15.90","Petrol","190577185","22/03/2019","Fleet Services","Fleet Management","R3000"
"Wolverhampton City Council","http://opendatacommunities.org/id/metropolitan-district-council/wolverhampton","701446","Alphabiolabs","25451","298.33","Services - Professional Fees","130244887","01/03/2019","Legal Services","Centralised External Legal Costs","R4400"
"Wolverhampton City Council","http://opendatacommunities.org/id/metropolitan-district-council/wolverhampton","701459","Alzheimer�S Society","PSI168016","18,223.75","TPP - Social Care Support Services","130240885","06/03/2019","Strategic Commissioning","Head of Strategic Commissioning","R5501"
"Wolverhampton City Council","http://opendatacommunities.org/id/metropolitan-district-council/wolverhampton","701509","Angel Springs Limited (Waterlogic)","4801554","234.00","Provisions (Not for resale)","130247947","20/03/2019","Strengthening Families","EI Area 5 - Whitmore Reans","R4101"
"Wolverhampton City Council","http://opendatacommunities.org/id/metropolitan-district-council/wolverhampton","701509","Angel Springs Limited (Waterlogic)","4747398","6.48","Provisions (Not for resale)","130247688","20/03/2019","Parking Services","Parking Enforcement","R4101"
"Wolverhampton City Council","http://opendatacommunities.org/id/metropolitan-district-council/wolverhampton","701509","Angel Springs Limited (Waterlogic)","4642865","4,290.00","Provisions (Not for resale)","130236757","20/03/2019","Maintenance Programme","Civic Centre Repairs & Maintenance","R4101"
"Wolverhampton City Council","http://opendatacommunities.org/id/metropolitan-district-council/wolverhampton","701509","Angel Springs Limited (Waterlogic)","4642395","68.75","Provisions (Not for resale)","130236755","20/03/2019","Maintenance Programme","Civic Centre Repairs & Maintenance","R4101"
"Wolverhampton City Council","http://opendatacommunities.org/id/metropolitan-district-council/wolverhampton","701509","Angel Springs Limited (Waterlogic)","4756591","68.75","Provisions (Not for resale)","130247693","20/03/2019","Maintenance Programme","Civic Centre Repairs & Maintenance","R4101"
"Wolverhampton City Council","http://opendatacommunities.org/id/metropolitan-district-council/wolverhampton","701509","Angel Springs Limited (Waterlogic)","4642370","-5.04","Provisions (Not for resale)","130248280","20/03/2019","Visitor Economy","Archives","R4101"
"Wolverhampton City Council","http://opendatacommunities.org/id/metropolitan-district-council/wolverhampton","701509","Angel Springs Limited (Waterlogic)","4695876","15.64","Provisions (Not for resale)","130247686","20/03/2019","Strengthening Families","EI Area 2- Bilston/Rocket pool","R4101"
"Wolverhampton City Council","http://opendatacommunities.org/id/metropolitan-district-council/wolverhampton","701509","Angel Springs Limited (Waterlogic)","4373967 re-issue","82.50","Provisions (Not for resale)","130244756","20/03/2019","Maintenance Programme","Civic Centre Repairs & Maintenance","R4101"
"Wolverhampton City Council","http://opendatacommunities.org/id/metropolitan-district-council/wolverhampton","701509","Angel Springs Limited (Waterlogic)","4695910","68.75","Provisions (Not for resale)","130247545","20/03/2019","Maintenance Programme","Civic Centre Repairs & Maintenance","R4101"
"Wolverhampton City Council","http://opendatacommunities.org/id/metropolitan-district-council/wolverhampton","701509","Angel Springs Limited (Waterlogic)","4861743","23.26","Provisions (Not for resale)","130246779","27/03/2019","Environmental Maintenance","Ground Maintenance East","R4101"
"Wolverhampton City Council","http://opendatacommunities.org/id/metropolitan-district-council/wolverhampton","701509","Angel Springs Limited (Waterlogic)","4861742","16.20","Provisions (Not for resale)","130246778","27/03/2019","Environmental Maintenance","Ground Maintenance East","R4101"
"Wolverhampton City Council","http://opendatacommunities.org/id/metropolitan-district-council/wolverhampton","701509","Angel Springs Limited (Waterlogic)","4861744","6.48","Provisions (Not for resale)","130246780","27/03/2019","Environmental Maintenance","Arbor Scheme","R4101"
"Wolverhampton City Council","http://opendatacommunities.org/id/metropolitan-district-council/wolverhampton","701509","Angel Springs Limited (Waterlogic)","4801124","10.30","Provisions (Not for resale)","130246777","13/03/2019","Environmental Maintenance","Ground Maintenance East","R4101"
"Wolverhampton City Council","http://opendatacommunities.org/id/metropolitan-district-council/wolverhampton","701509","Angel Springs Limited (Waterlogic)","4479577","82.50","Provisions (Not for resale)","130228654","13/03/2019","Maintenance Programme","Civic Centre Repairs & Maintenance","R4101"
"Wolverhampton City Council","http://opendatacommunities.org/id/metropolitan-district-council/wolverhampton","701509","Angel Springs Limited (Waterlogic)","4756963","-82.50","Provisions (Not for resale)","130245847","13/03/2019","Maintenance Programme","Civic Centre Repairs & Maintenance","R4101"
"Wolverhampton City Council","http://opendatacommunities.org/id/metropolitan-district-council/wolverhampton","701509","Angel Springs Limited (Waterlogic)","4427422","82.50","Provisions (Not for resale)","130228652","13/03/2019","Maintenance Programme","Civic Centre Repairs & Maintenance","R4101"
"Wolverhampton City Council","http://opendatacommunities.org/id/metropolitan-district-council/wolverhampton","701509","Angel Springs Limited (Waterlogic)","4756961","-82.50","Provisions (Not for resale)","130243589","13/03/2019","Maintenance Programme","Civic Centre Repairs & Maintenance","R4101"
"Wolverhampton City Council","http://opendatacommunities.org/id/metropolitan-district-council/wolverhampton","701509","Angel Springs Limited (Waterlogic)","4862396","22.66","Provisions (Not for resale)","130248866","27/03/2019","Visitor Economy","Archives","R4101"
"Wolverhampton City Council","http://opendatacommunities.org/id/metropolitan-district-council/wolverhampton","701509","Angel Springs Limited (Waterlogic)","4862395","10.30","Provisions (Not for resale)","130246996","27/03/2019","Operation & Maintenance of Existing Network","Condition Surveys","R4101"
"Wolverhampton City Council","http://opendatacommunities.org/id/metropolitan-district-council/wolverhampton","701509","Angel Springs Limited (Waterlogic)","4695199","10.30","Provisions (Not for resale)","130246992","13/03/2019","Environmental Maintenance","Ground Maintenance East","R4101"
"Wolverhampton City Council","http://opendatacommunities.org/id/metropolitan-district-council/wolverhampton","701509","Angel Springs Limited (Waterlogic)","4747407","6.48","Provisions (Not for resale)","130246995","13/03/2019","Operation & Maintenance of Existing Network","Condition Surveys","R4101"
"Wolverhampton City Council","http://opendatacommunities.org/id/metropolitan-district-council/wolverhampton","701509","Angel Springs Limited (Waterlogic)","4746757","9.72","Provisions (Not for resale)","130246994","13/03/2019","Environmental Maintenance","Ground Maintenance East","R4101"
"Wolverhampton City Council","http://opendatacommunities.org/id/metropolitan-district-council/wolverhampton","701509","Angel Springs Limited (Waterlogic)","4318846","82.50","Provisions (Not for resale)","130228639","13/03/2019","Maintenance Programme","Civic Centre Repairs & Maintenance","R4101"
"Wolverhampton City Council","http://opendatacommunities.org/id/metropolitan-district-council/wolverhampton","701509","Angel Springs Limited (Waterlogic)","4756960","-82.50","Provisions (Not for resale)","130243386","13/03/2019","Maintenance Programme","Civic Centre Repairs & Maintenance","R4101"
"Wolverhampton City Council","http://opendatacommunities.org/id/metropolitan-district-council/wolverhampton","701509","Angel Springs Limited (Waterlogic)","4695885","45.56","Provisions (Not for resale)","130247405","13/03/2019","Visitor Economy","Archives","R4101"
"Wolverhampton City Council","http://opendatacommunities.org/id/metropolitan-district-council/wolverhampton","701509","Angel Springs Limited (Waterlogic)","4535363","82.50","Provisions (Not for resale)","130228658","13/03/2019","Maintenance Programme","Civic Centre Repairs & Maintenance","R4101"
"Wolverhampton City Council","http://opendatacommunities.org/id/metropolitan-district-council/wolverhampton","701509","Angel Springs Limited (Waterlogic)","4756964","-82.50","Provisions (Not for resale)","130245848","13/03/2019","Maintenance Programme","Civic Centre Repairs & Maintenance","R4101"
"Wolverhampton City Council","http://opendatacommunities.org/id/metropolitan-district-council/wolverhampton","701509","Angel Springs Limited (Waterlogic)","4756580","68.75","Provisions (Not for resale)","130247689","20/03/2019","Maintenance Programme","Civic Centre Repairs & Maintenance","R4101"
"Wolverhampton City Council","http://opendatacommunities.org/id/metropolitan-district-council/wolverhampton","701509","Angel Springs Limited (Waterlogic)","4801772","6.48","Provisions (Not for resale)","130247695","20/03/2019","Parking Services","Parking Enforcement","R4101"
"Wolverhampton City Council","http://opendatacommunities.org/id/metropolitan-district-council/wolverhampton","701509","Angel Springs Limited (Waterlogic)","4662495","25.00","Provisions (Not for resale)","130247541","20/03/2019","Maintenance Programme","Civic Centre Repairs & Maintenance","R4101"
"Wolverhampton City Council","http://opendatacommunities.org/id/metropolitan-district-council/wolverhampton","701509","Angel Springs Limited (Waterlogic)","4756588","68.75","Provisions (Not for resale)","130247692","20/03/2019","Maintenance Programme","Civic Centre Repairs & Maintenance","R4101"
"Wolverhampton City Council","http://opendatacommunities.org/id/metropolitan-district-council/wolverhampton","701509","Angel Springs Limited (Waterlogic)","4756962","-82.50","Provisions (Not for resale)","130247694","15/03/2019","Maintenance Programme","Civic Centre Repairs & Maintenance","R4101"
"Wolverhampton City Council","http://opendatacommunities.org/id/metropolitan-district-council/wolverhampton","701509","Angel Springs Limited (Waterlogic)","4747397","10.30","Provisions (Not for resale)","130247547","15/03/2019","Parking Services","Car Parks Operational Staff","R4101"
"Wolverhampton City Council","http://opendatacommunities.org/id/metropolitan-district-council/wolverhampton","701509","Angel Springs Limited (Waterlogic)","4756586","68.75","Provisions (Not for resale)","130247691","22/03/2019","Maintenance Programme","Civic Centre Repairs & Maintenance","R4101"
"Wolverhampton City Council","http://opendatacommunities.org/id/metropolitan-district-council/wolverhampton","701509","Angel Springs Limited (Waterlogic)","4862393","19.44","Provisions (Not for resale)","130246781","27/03/2019","School Planning & Resources","Education Data Services","R4101"
"Wolverhampton City Council","http://opendatacommunities.org/id/metropolitan-district-council/wolverhampton","701509","Angel Springs Limited (Waterlogic)","4862422","10.30","Provisions (Not for resale)","130246782","27/03/2019","Licensing","Licensing - Private Hire Vehicles","R4101"
"Wolverhampton City Council","http://opendatacommunities.org/id/metropolitan-district-council/wolverhampton","701509","Angel Springs Limited (Waterlogic)","4756585","68.75","Provisions (Not for resale)","130247690","22/03/2019","Maintenance Programme","Civic Centre Repairs & Maintenance","R4101"
"Wolverhampton City Council","http://opendatacommunities.org/id/metropolitan-district-council/wolverhampton","701509","Angel Springs Limited (Waterlogic)","4642369","9.72","Provisions (Not for resale)","130246991","15/03/2019","Operation & Maintenance of Existing Network","Condition Surveys","R4101"
"Wolverhampton City Council","http://opendatacommunities.org/id/metropolitan-district-council/wolverhampton","701509","Angel Springs Limited (Waterlogic)","4695912","40.04","Provisions (Not for resale)","130247546","15/03/2019","Highways Maintenance","Patching","R4101"
"Wolverhampton City Council","http://opendatacommunities.org/id/metropolitan-district-council/wolverhampton","701509","Angel Springs Limited (Waterlogic)","4695886","12.96","Provisions (Not for resale)","130247544","15/03/2019","Headstart","Headstart - Young People Engagement","R4101"
"Wolverhampton City Council","http://opendatacommunities.org/id/metropolitan-district-council/wolverhampton","701509","Angel Springs Limited (Waterlogic)","4695884","16.78","Provisions (Not for resale)","130246993","15/03/2019","Operation & Maintenance of Existing Network","Condition Surveys","R4101"
"Wolverhampton City Council","http://opendatacommunities.org/id/metropolitan-district-council/wolverhampton","701509","Angel Springs Limited (Waterlogic)","4695874","32.40","Provisions (Not for resale)","130247542","15/03/2019","Parking Services","Car Parks Operational Staff","R4101"
"Wolverhampton City Council","http://opendatacommunities.org/id/metropolitan-district-council/wolverhampton","701509","Angel Springs Limited (Waterlogic)","4695875","53.00","Provisions (Not for resale)","130247543","15/03/2019","Parking Services","Parking Enforcement","R4101"
"Wolverhampton City Council","http://opendatacommunities.org/id/metropolitan-district-council/wolverhampton","701512","Anglia Dna Services Limited","9895","152.67","Services - Professional Fees","130248870","27/03/2019","Legal Services","Centralised External Legal Costs","R4400"
"Wolverhampton City Council","http://opendatacommunities.org/id/metropolitan-district-council/wolverhampton","701512","Anglia Dna Services Limited","9711","160.00","Services - Professional Fees","130248869","27/03/2019","Legal Services","Centralised External Legal Costs","R4400"
"Wolverhampton City Council","http://opendatacommunities.org/id/metropolitan-district-council/wolverhampton","701512","Anglia Dna Services Limited","10030","118.50","Services - Professional Fees","130248867","27/03/2019","Legal Services","Centralised External Legal Costs","R4400"
"Wolverhampton City Council","http://opendatacommunities.org/id/metropolitan-district-council/wolverhampton","701512","Anglia Dna Services Limited","8921","141.34","Services - Professional Fees","130248868","27/03/2019","Legal Services","Centralised External Legal Costs","R4400"
"Wolverhampton City Council","http://opendatacommunities.org/id/metropolitan-district-council/wolverhampton","701512","Anglia Dna Services Limited","9638","130.00","Services - Professional Fees","130245583","01/03/2019","Legal Services","Centralised External Legal Costs","R4400"
"Wolverhampton City Council","http://opendatacommunities.org/id/metropolitan-district-council/wolverhampton","701512","Anglia Dna Services Limited","9586","388.00","Services - Professional Fees","130245582","01/03/2019","Legal Services","Centralised External Legal Costs","R4400"
"Wolverhampton City Council","http://opendatacommunities.org/id/metropolitan-district-council/wolverhampton","701534","Antalis Limited","8339166","720.69","Stationery","130244890","06/03/2019","ICTS","Document Centre - General","R4308"
"Wolverhampton City Council","http://opendatacommunities.org/id/metropolitan-district-council/wolverhampton","701534","Antalis Limited","8335880","222.72","Stationery","130244888","06/03/2019","ICTS","Document Centre - General","R4308"
"Wolverhampton City Council","http://opendatacommunities.org/id/metropolitan-district-council/wolverhampton","701534","Antalis Limited","8335881","70.00","Stationery","130244889","06/03/2019","ICTS","Document Centre - General","R4308"
"Wolverhampton City Council","http://opendatacommunities.org/id/metropolitan-district-council/wolverhampton","701534","Antalis Limited","8332894","141.68","Stationery","130243134","01/03/2019","ICTS","Document Centre - General","R4308"
"Wolverhampton City Council","http://opendatacommunities.org/id/metropolitan-district-council/wolverhampton","701545","Apcoa Parking (UK) Limited","273340","47,743.77","TPP - Traffic Management","130246348","27/03/2019","Parking Services","Parking Enforcement","R5050"
"Wolverhampton City Council","http://opendatacommunities.org/id/metropolitan-district-council/wolverhampton","701545","Apcoa Parking (UK) Limited","272752","52,506.04","TPP - Traffic Management","130243135","01/03/2019","Parking Services","Parking Enforcement","R5050"
"Wolverhampton City Council","http://opendatacommunities.org/id/metropolitan-district-council/wolverhampton","701547","Apetito Limited","9002616837","1,317.00","Provisions (Resale)","130245229","13/03/2019","Catering","Meals on Wheels","R4102"
"Wolverhampton City Council","http://opendatacommunities.org/id/metropolitan-district-council/wolverhampton","701547","Apetito Limited","9002612488","1,110.96","Provisions (Resale)","130244891","13/03/2019","Catering","Meals on Wheels","R4102"
"Wolverhampton City Council","http://opendatacommunities.org/id/metropolitan-district-council/wolverhampton","701547","Apetito Limited","9002612488","79.82","Provisions (Resale)","130244891","13/03/2019","Catering","Meals on Wheels","R4102"
"Wolverhampton City Council","http://opendatacommunities.org/id/metropolitan-district-council/wolverhampton","701547","Apetito Limited","9002612488","29.25","Provisions (Resale)","130244891","13/03/2019","Catering","Meals on Wheels","R4102"
"Wolverhampton City Council","http://opendatacommunities.org/id/metropolitan-district-council/wolverhampton","701547","Apetito Limited","9002626940","124.35","Provisions (Resale)","130246783","27/03/2019","Catering","Meals on Wheels","R4102"
"Wolverhampton City Council","http://opendatacommunities.org/id/metropolitan-district-council/wolverhampton","701547","Apetito Limited","9002626940","1,110.96","Provisions (Resale)","130246783","27/03/2019","Catering","Meals on Wheels","R4102"
"Wolverhampton City Council","http://opendatacommunities.org/id/metropolitan-district-council/wolverhampton","701547","Apetito Limited","9002623954","1,383.53","Provisions (Resale)","130245985","20/03/2019","Catering","Meals on Wheels","R4102"
"Wolverhampton City Council","http://opendatacommunities.org/id/metropolitan-district-council/wolverhampton","701547","Apetito Limited","9002605499","1,114.87","Provisions (Resale)","130243975","06/03/2019","Catering","Meals on Wheels","R4102"
"Wolverhampton City Council","http://opendatacommunities.org/id/metropolitan-district-council/wolverhampton","701547","Apetito Limited","9002619652","1,153.72","Provisions (Resale)","130245584","20/03/2019","Catering","Meals on Wheels","R4102"
"Wolverhampton City Council","http://opendatacommunities.org/id/metropolitan-district-council/wolverhampton","701547","Apetito Limited","9002609554","1,427.17","Provisions (Resale)","130244411","06/03/2019","Catering","Meals on Wheels","R4102"
"Wolverhampton City Council","http://opendatacommunities.org/id/metropolitan-district-council/wolverhampton","701547","Apetito Limited","9002631153","1,198.71","Provisions (Resale)","130246997","27/03/2019","Catering","Meals on Wheels","R4102"
"Wolverhampton City Council","http://opendatacommunities.org/id/metropolitan-district-council/wolverhampton","701547","Apetito Limited","9002626853","-32.83","Provisions (Resale)","130246572","27/03/2019","Catering","Meals on Wheels","R4102"
"Wolverhampton City Council","http://opendatacommunities.org/id/metropolitan-district-council/wolverhampton","701595","Argus Fire Protection Co.Limited","43369","600.00","Equipment - Purchase","130245585","20/03/2019","Maintenance Programme","Civic Centre Repairs & Maintenance","R4000"
"Wolverhampton City Council","http://opendatacommunities.org/id/metropolitan-district-council/wolverhampton","701603","Arnold Clark Finance Limited","HI2494926","81.25","Hire of Vehicles","190572452","13/03/2019","Fleet Services","Fleet Management","R3200"
"Wolverhampton City Council","http://opendatacommunities.org/id/metropolitan-district-council/wolverhampton","701603","Arnold Clark Finance Limited","HI2499348","54.36","Hire of Vehicles","190572473","13/03/2019","Fleet Services","Fleet Management","R3200"
"Wolverhampton City Council","http://opendatacommunities.org/id/metropolitan-district-council/wolverhampton","701603","Arnold Clark Finance Limited","HI2497445","15.15","Hire of Vehicles","190572459","13/03/2019","Fleet Services","Fleet Management","R3200"
"Wolverhampton City Council","http://opendatacommunities.org/id/metropolitan-district-council/wolverhampton","701603","Arnold Clark Finance Limited","HI2497445","11.58","Hire of Vehicles","190572459","13/03/2019","Fleet Services","Fleet Management","R3200"
"Wolverhampton City Council","http://opendatacommunities.org/id/metropolitan-district-council/wolverhampton","701603","Arnold Clark Finance Limited","HI2498224","100.80","Hire of Vehicles","190572467","13/03/2019","Fleet Services","Fleet Management","R3200"
"Wolverhampton City Council","http://opendatacommunities.org/id/metropolitan-district-council/wolverhampton","701603","Arnold Clark Finance Limited","HI2499349","23.25","Hire of Vehicles","190572474","13/03/2019","Fleet Services","Fleet Management","R3200"
"Wolverhampton City Council","http://opendatacommunities.org/id/metropolitan-district-council/wolverhampton","701603","Arnold Clark Finance Limited","HI2498217","139.90","Hire of Vehicles","190572462","13/03/2019","Fleet Services","Fleet Management","R3200"
"Wolverhampton City Council","http://opendatacommunities.org/id/metropolitan-district-council/wolverhampton","701603","Arnold Clark Finance Limited","HI2501716","81.25","Hire of Vehicles","190572485","13/03/2019","Fleet Services","Fleet Management","R3200"
"Wolverhampton City Council","http://opendatacommunities.org/id/metropolitan-district-council/wolverhampton","701603","Arnold Clark Finance Limited","HI2501713","60.90","Hire of Vehicles","190572482","13/03/2019","Fleet Services","Fleet Management","R3200"
"Wolverhampton City Council","http://opendatacommunities.org/id/metropolitan-district-council/wolverhampton","701603","Arnold Clark Finance Limited","HI2501223","18.12","Hire of Vehicles","190572479","13/03/2019","Fleet Services","Fleet Management","R3200"
"Wolverhampton City Council","http://opendatacommunities.org/id/metropolitan-district-council/wolverhampton","701603","Arnold Clark Finance Limited","HI2499981","18.12","Hire of Vehicles","190572476","13/03/2019","Fleet Services","Fleet Management","R3200"
"Wolverhampton City Council","http://opendatacommunities.org/id/metropolitan-district-council/wolverhampton","701603","Arnold Clark Finance Limited","HI2499981","29.14","Hire of Vehicles","190572476","13/03/2019","Fleet Services","Fleet Management","R3200"
"Wolverhampton City Council","http://opendatacommunities.org/id/metropolitan-district-council/wolverhampton","701603","Arnold Clark Finance Limited","HI2494928","12.75","Hire of Vehicles","190572454","13/03/2019","Fleet Services","Fleet Management","R3200"
"Wolverhampton City Council","http://opendatacommunities.org/id/metropolitan-district-council/wolverhampton","701603","Arnold Clark Finance Limited","HI2494922","100.80","Hire of Vehicles","190572448","13/03/2019","Fleet Services","Fleet Management","R3200"
"Wolverhampton City Council","http://opendatacommunities.org/id/metropolitan-district-council/wolverhampton","701603","Arnold Clark Finance Limited","HI2498221","81.25","Hire of Vehicles","190572465","13/03/2019","Fleet Services","Fleet Management","R3200"
"Wolverhampton City Council","http://opendatacommunities.org/id/metropolitan-district-council/wolverhampton","701603","Arnold Clark Finance Limited","HI2498228","14.55","Hire of Vehicles","190572469","13/03/2019","Fleet Services","Fleet Management","R3200"
"Wolverhampton City Council","http://opendatacommunities.org/id/metropolitan-district-council/wolverhampton","701603","Arnold Clark Finance Limited","HI2497443","18.12","Hire of Vehicles","190572458","13/03/2019","Fleet Services","Fleet Management","R3200"
"Wolverhampton City Council","http://opendatacommunities.org/id/metropolitan-district-council/wolverhampton","701603","Arnold Clark Finance Limited","HI2497446","44.41","Hire of Vehicles","190572460","13/03/2019","Fleet Services","Fleet Management","R3200"
"Wolverhampton City Council","http://opendatacommunities.org/id/metropolitan-district-council/wolverhampton","701603","Arnold Clark Finance Limited","HI2498218","139.90","Hire of Vehicles","190572463","13/03/2019","Fleet Services","Fleet Management","R3200"
"Wolverhampton City Council","http://opendatacommunities.org/id/metropolitan-district-council/wolverhampton","701603","Arnold Clark Finance Limited","HI2500572","23.25","Hire of Vehicles","190572478","13/03/2019","Fleet Services","Fleet Management","R3200"
"Wolverhampton City Council","http://opendatacommunities.org/id/metropolitan-district-council/wolverhampton","701603","Arnold Clark Finance Limited","HI2501719","40.95","Hire of Vehicles","190572488","13/03/2019","Fleet Services","Fleet Management","R3200"
"Wolverhampton City Council","http://opendatacommunities.org/id/metropolitan-district-council/wolverhampton","701603","Arnold Clark Finance Limited","HI2501718","60.90","Hire of Vehicles","190572487","13/03/2019","Fleet Services","Fleet Management","R3200"
"Wolverhampton City Council","http://opendatacommunities.org/id/metropolitan-district-council/wolverhampton","701603","Arnold Clark Finance Limited","HI2501714","100.80","Hire of Vehicles","190572483","13/03/2019","Fleet Services","Fleet Management","R3200"
"Wolverhampton City Council","http://opendatacommunities.org/id/metropolitan-district-council/wolverhampton","701603","Arnold Clark Finance Limited","HI2405178","68.25","Hire of Vehicles","190579305","27/03/2019","Fleet Services","Fleet Management","R3200"
"Wolverhampton City Council","http://opendatacommunities.org/id/metropolitan-district-council/wolverhampton","701603","Arnold Clark Finance Limited","HI2504125","46.50","Hire of Vehicles","190579312","27/03/2019","Fleet Services","Fleet Management","R3200"
"Wolverhampton City Council","http://opendatacommunities.org/id/metropolitan-district-council/wolverhampton","701603","Arnold Clark Finance Limited","HI2465807","136.50","Hire of Vehicles","190579307","27/03/2019","Fleet Services","Fleet Management","R3200"
"Wolverhampton City Council","http://opendatacommunities.org/id/metropolitan-district-council/wolverhampton","701603","Arnold Clark Finance Limited","HI2504749","25.50","Hire of Vehicles","190579321","27/03/2019","Fleet Services","Fleet Management","R3200"
"Wolverhampton City Council","http://opendatacommunities.org/id/metropolitan-district-council/wolverhampton","701603","Arnold Clark Finance Limited","HI2504713","41.88","Hire of Vehicles","190579318","27/03/2019","Fleet Services","Fleet Management","R3200"
"Wolverhampton City Council","http://opendatacommunities.org/id/metropolitan-district-council/wolverhampton","701603","Arnold Clark Finance Limited","HI2513784","151.25","Hire of Vehicles","190579360","27/03/2019","Fleet Services","Fleet Management","R3200"
"Wolverhampton City Council","http://opendatacommunities.org/id/metropolitan-district-council/wolverhampton","701603","Arnold Clark Finance Limited","HI2504703","18.12","Hire of Vehicles","190579317","27/03/2019","Fleet Services","Fleet Management","R3200"
"Wolverhampton City Council","http://opendatacommunities.org/id/metropolitan-district-council/wolverhampton","701603","Arnold Clark Finance Limited","HI2504703","17.93","Hire of Vehicles","190579317","27/03/2019","Fleet Services","Fleet Management","R3200"
"Wolverhampton City Council","http://opendatacommunities.org/id/metropolitan-district-council/wolverhampton","701603","Arnold Clark Finance Limited","HI2508653","81.25","Hire of Vehicles","190579336","27/03/2019","Fleet Services","Fleet Management","R3200"
"Wolverhampton City Council","http://opendatacommunities.org/id/metropolitan-district-council/wolverhampton","701603","Arnold Clark Finance Limited","HI2508656","139.90","Hire of Vehicles","190579339","27/03/2019","Fleet Services","Fleet Management","R3200"
"Wolverhampton City Council","http://opendatacommunities.org/id/metropolitan-district-council/wolverhampton","701603","Arnold Clark Finance Limited","HI2512159","60.90","Hire of Vehicles","190579349","27/03/2019","Fleet Services","Fleet Management","R3200"
"Wolverhampton City Council","http://opendatacommunities.org/id/metropolitan-district-council/wolverhampton","701603","Arnold Clark Finance Limited","HI2511797","18.12","Hire of Vehicles","190579348","27/03/2019","Fleet Services","Fleet Management","R3200"
"Wolverhampton City Council","http://opendatacommunities.org/id/metropolitan-district-council/wolverhampton","701603","Arnold Clark Finance Limited","HI2511797","40.58","Hire of Vehicles","190579348","27/03/2019","Fleet Services","Fleet Management","R3200"
"Wolverhampton City Council","http://opendatacommunities.org/id/metropolitan-district-council/wolverhampton","701603","Arnold Clark Finance Limited","HI2508663","23.25","Hire of Vehicles","190579342","27/03/2019","Fleet Services","Fleet Management","R3200"
"Wolverhampton City Council","http://opendatacommunities.org/id/metropolitan-district-council/wolverhampton","701603","Arnold Clark Finance Limited","HI2499347","324.24","Hire of Vehicles","190572472","13/03/2019","Fleet Services","Fleet Management","R3200"
"Wolverhampton City Council","http://opendatacommunities.org/id/metropolitan-district-council/wolverhampton","701603","Arnold Clark Finance Limited","HI2498223","81.25","Hire of Vehicles","190572466","13/03/2019","Fleet Services","Fleet Management","R3200"
"Wolverhampton City Council","http://opendatacommunities.org/id/metropolitan-district-council/wolverhampton","701603","Arnold Clark Finance Limited","HI2499350","18.12","Hire of Vehicles","190572475","13/03/2019","Fleet Services","Fleet Management","R3200"
"Wolverhampton City Council","http://opendatacommunities.org/id/metropolitan-district-council/wolverhampton","701603","Arnold Clark Finance Limited","HI2498230","14.55","Hire of Vehicles","190572471","13/03/2019","Fleet Services","Fleet Management","R3200"
"Wolverhampton City Council","http://opendatacommunities.org/id/metropolitan-district-council/wolverhampton","701603","Arnold Clark Finance Limited","HI2498226","12.75","Hire of Vehicles","190572468","13/03/2019","Fleet Services","Fleet Management","R3200"
"Wolverhampton City Council","http://opendatacommunities.org/id/metropolitan-district-council/wolverhampton","701603","Arnold Clark Finance Limited","HI250712","100.80","Hire of Vehicles","190572489","13/03/2019","Fleet Services","Fleet Management","R3200"
"Wolverhampton City Council","http://opendatacommunities.org/id/metropolitan-district-council/wolverhampton","701603","Arnold Clark Finance Limited","HI2501539","23.25","Hire of Vehicles","190572480","13/03/2019","Fleet Services","Fleet Management","R3200"
"Wolverhampton City Council","http://opendatacommunities.org/id/metropolitan-district-council/wolverhampton","701603","Arnold Clark Finance Limited","HI2501717","139.90","Hire of Vehicles","190572486","13/03/2019","Fleet Services","Fleet Management","R3200"
"Wolverhampton City Council","http://opendatacommunities.org/id/metropolitan-district-council/wolverhampton","701603","Arnold Clark Finance Limited","HI2504291","41.88","Hire of Vehicles","190579314","27/03/2019","Fleet Services","Fleet Management","R3200"
"Wolverhampton City Council","http://opendatacommunities.org/id/metropolitan-district-council/wolverhampton","701603","Arnold Clark Finance Limited","HI2503180","13.65","Hire of Vehicles","190579309","27/03/2019","Fleet Services","Fleet Management","R3200"
"Wolverhampton City Council","http://opendatacommunities.org/id/metropolitan-district-council/wolverhampton","701603","Arnold Clark Finance Limited","HI2504731","15.15","Hire of Vehicles","190579319","27/03/2019","Fleet Services","Fleet Management","R3200"
"Wolverhampton City Council","http://opendatacommunities.org/id/metropolitan-district-council/wolverhampton","701603","Arnold Clark Finance Limited","HI2504731","22.62","Hire of Vehicles","190579319","27/03/2019","Fleet Services","Fleet Management","R3200"
"Wolverhampton City Council","http://opendatacommunities.org/id/metropolitan-district-council/wolverhampton","701603","Arnold Clark Finance Limited","HI2504992","139.90","Hire of Vehicles","190579326","27/03/2019","Fleet Services","Fleet Management","R3200"
"Wolverhampton City Council","http://opendatacommunities.org/id/metropolitan-district-council/wolverhampton","701603","Arnold Clark Finance Limited","HI2504990","81.25","Hire of Vehicles","190579324","27/03/2019","Fleet Services","Fleet Management","R3200"
"Wolverhampton City Council","http://opendatacommunities.org/id/metropolitan-district-council/wolverhampton","701603","Arnold Clark Finance Limited","HI2513785","79.65","Hire of Vehicles","190579361","27/03/2019","Fleet Services","Fleet Management","R3200"
"Wolverhampton City Council","http://opendatacommunities.org/id/metropolitan-district-council/wolverhampton","701603","Arnold Clark Finance Limited","HI2507534","23.25","Hire of Vehicles","190579333","27/03/2019","Fleet Services","Fleet Management","R3200"
"Wolverhampton City Council","http://opendatacommunities.org/id/metropolitan-district-council/wolverhampton","701603","Arnold Clark Finance Limited","HI2514318","23.25","Hire of Vehicles","190579365","27/03/2019","Fleet Services","Fleet Management","R3200"
"Wolverhampton City Council","http://opendatacommunities.org/id/metropolitan-district-council/wolverhampton","701603","Arnold Clark Finance Limited","HI2508657","60.90","Hire of Vehicles","190579340","27/03/2019","Fleet Services","Fleet Management","R3200"
"Wolverhampton City Council","http://opendatacommunities.org/id/metropolitan-district-council/wolverhampton","701603","Arnold Clark Finance Limited","HI2512165","81.25","Hire of Vehicles","190579353","27/03/2019","Fleet Services","Fleet Management","R3200"
"Wolverhampton City Council","http://opendatacommunities.org/id/metropolitan-district-council/wolverhampton","701603","Arnold Clark Finance Limited","HI2508665","33.25","Hire of Vehicles","190579343","27/03/2019","Fleet Services","Fleet Management","R3200"
"Wolverhampton City Council","http://opendatacommunities.org/id/metropolitan-district-council/wolverhampton","701603","Arnold Clark Finance Limited","HI2512172","36.24","Hire of Vehicles","190579357","27/03/2019","Fleet Services","Fleet Management","R3200"
"Wolverhampton City Council","http://opendatacommunities.org/id/metropolitan-district-council/wolverhampton","701603","Arnold Clark Finance Limited","HI2512170","41.88","Hire of Vehicles","190579356","27/03/2019","Fleet Services","Fleet Management","R3200"
"Wolverhampton City Council","http://opendatacommunities.org/id/metropolitan-district-council/wolverhampton","701603","Arnold Clark Finance Limited","HI2512170","13.34","Hire of Vehicles","190579356","27/03/2019","Fleet Services","Fleet Management","R3200"
"Wolverhampton City Council","http://opendatacommunities.org/id/metropolitan-district-council/wolverhampton","701603","Arnold Clark Finance Limited","HI2504991","100.80","Hire of Vehicles","190579325","27/03/2019","Fleet Services","Fleet Management","R3200"
"Wolverhampton City Council","http://opendatacommunities.org/id/metropolitan-district-council/wolverhampton","701603","Arnold Clark Finance Limited","HI2510727","18.12","Hire of Vehicles","190579346","27/03/2019","Fleet Services","Fleet Management","R3200"
"Wolverhampton City Council","http://opendatacommunities.org/id/metropolitan-district-council/wolverhampton","701603","Arnold Clark Finance Limited","HI2512162","100.80","Hire of Vehicles","190579351","27/03/2019","Fleet Services","Fleet Management","R3200"
"Wolverhampton City Council","http://opendatacommunities.org/id/metropolitan-district-council/wolverhampton","701603","Arnold Clark Finance Limited","HI2512173","18.12","Hire of Vehicles","190579358","27/03/2019","Fleet Services","Fleet Management","R3200"
"Wolverhampton City Council","http://opendatacommunities.org/id/metropolitan-district-council/wolverhampton","701603","Arnold Clark Finance Limited","HI2505219","324.24","Hire of Vehicles","190579329","27/03/2019","Fleet Services","Fleet Management","R3200"
"Wolverhampton City Council","http://opendatacommunities.org/id/metropolitan-district-council/wolverhampton","701603","Arnold Clark Finance Limited","HI2508652","100.80","Hire of Vehicles","190579335","27/03/2019","Fleet Services","Fleet Management","R3200"
"Wolverhampton City Council","http://opendatacommunities.org/id/metropolitan-district-council/wolverhampton","701603","Arnold Clark Finance Limited","HI2504988","100.80","Hire of Vehicles","190579323","27/03/2019","Fleet Services","Fleet Management","R3200"
"Wolverhampton City Council","http://opendatacommunities.org/id/metropolitan-district-council/wolverhampton","701603","Arnold Clark Finance Limited","HI2510138","18.12","Hire of Vehicles","190579345","27/03/2019","Fleet Services","Fleet Management","R3200"
"Wolverhampton City Council","http://opendatacommunities.org/id/metropolitan-district-council/wolverhampton","701603","Arnold Clark Finance Limited","HI2512160","100.80","Hire of Vehicles","190579350","27/03/2019","Fleet Services","Fleet Management","R3200"
"Wolverhampton City Council","http://opendatacommunities.org/id/metropolitan-district-council/wolverhampton","701603","Arnold Clark Finance Limited","HI2512328","324.24","Hire of Vehicles","190579359","27/03/2019","Fleet Services","Fleet Management","R3200"
"Wolverhampton City Council","http://opendatacommunities.org/id/metropolitan-district-council/wolverhampton","701603","Arnold Clark Finance Limited","HI2514319","18.12","Hire of Vehicles","190579366","27/03/2019","Fleet Services","Fleet Management","R3200"
"Wolverhampton City Council","http://opendatacommunities.org/id/metropolitan-district-council/wolverhampton","701603","Arnold Clark Finance Limited","HI2508655","100.80","Hire of Vehicles","190579338","27/03/2019","Fleet Services","Fleet Management","R3200"
"Wolverhampton City Council","http://opendatacommunities.org/id/metropolitan-district-council/wolverhampton","701603","Arnold Clark Finance Limited","HI2494924","139.90","Hire of Vehicles","190572450","13/03/2019","Fleet Services","Fleet Management","R3200"
"Wolverhampton City Council","http://opendatacommunities.org/id/metropolitan-district-council/wolverhampton","701603","Arnold Clark Finance Limited","HI2497442","41.88","Hire of Vehicles","190572457","13/03/2019","Fleet Services","Fleet Management","R3200"
"Wolverhampton City Council","http://opendatacommunities.org/id/metropolitan-district-council/wolverhampton","701603","Arnold Clark Finance Limited","HI2497442","13.01","Hire of Vehicles","190572457","13/03/2019","Fleet Services","Fleet Management","R3200"
"Wolverhampton City Council","http://opendatacommunities.org/id/metropolitan-district-council/wolverhampton","701603","Arnold Clark Finance Limited","HI2494925","100.80","Hire of Vehicles","190572451","13/03/2019","Fleet Services","Fleet Management","R3200"
"Wolverhampton City Council","http://opendatacommunities.org/id/metropolitan-district-council/wolverhampton","701603","Arnold Clark Finance Limited","HI2496790","33.25","Hire of Vehicles","190572455","13/03/2019","Fleet Services","Fleet Management","R3200"
"Wolverhampton City Council","http://opendatacommunities.org/id/metropolitan-district-council/wolverhampton","701603","Arnold Clark Finance Limited","HI2497440","54.36","Hire of Vehicles","190572456","13/03/2019","Fleet Services","Fleet Management","R3200"
"Wolverhampton City Council","http://opendatacommunities.org/id/metropolitan-district-council/wolverhampton","701603","Arnold Clark Finance Limited","HI2494923","81.25","Hire of Vehicles","190572449","13/03/2019","Fleet Services","Fleet Management","R3200"
"Wolverhampton City Council","http://opendatacommunities.org/id/metropolitan-district-council/wolverhampton","701603","Arnold Clark Finance Limited","HI2494927","139.90","Hire of Vehicles","190572453","13/03/2019","Fleet Services","Fleet Management","R3200"
"Wolverhampton City Council","http://opendatacommunities.org/id/metropolitan-district-council/wolverhampton","701603","Arnold Clark Finance Limited","HI2498219","100.80","Hire of Vehicles","190572464","13/03/2019","Fleet Services","Fleet Management","R3200"
"Wolverhampton City Council","http://opendatacommunities.org/id/metropolitan-district-council/wolverhampton","701603","Arnold Clark Finance Limited","HI2498214","60.90","Hire of Vehicles","190572461","13/03/2019","Fleet Services","Fleet Management","R3200"
"Wolverhampton City Council","http://opendatacommunities.org/id/metropolitan-district-council/wolverhampton","701603","Arnold Clark Finance Limited","HI2498229","12.75","Hire of Vehicles","190572470","13/03/2019","Fleet Services","Fleet Management","R3200"
"Wolverhampton City Council","http://opendatacommunities.org/id/metropolitan-district-council/wolverhampton","701603","Arnold Clark Finance Limited","HI2500282","18.12","Hire of Vehicles","190572477","13/03/2019","Fleet Services","Fleet Management","R3200"
"Wolverhampton City Council","http://opendatacommunities.org/id/metropolitan-district-council/wolverhampton","701603","Arnold Clark Finance Limited","HI2501711","81.25","Hire of Vehicles","190572481","13/03/2019","Fleet Services","Fleet Management","R3200"
"Wolverhampton City Council","http://opendatacommunities.org/id/metropolitan-district-council/wolverhampton","701603","Arnold Clark Finance Limited","HI2501715","111.92","Hire of Vehicles","190572484","13/03/2019","Fleet Services","Fleet Management","R3200"
"Wolverhampton City Council","http://opendatacommunities.org/id/metropolitan-district-council/wolverhampton","701603","Arnold Clark Finance Limited","HI2503516","15.15","Hire of Vehicles","190579310","27/03/2019","Fleet Services","Fleet Management","R3200"
"Wolverhampton City Council","http://opendatacommunities.org/id/metropolitan-district-council/wolverhampton","701603","Arnold Clark Finance Limited","HI2503516","12.50","Hire of Vehicles","190579310","27/03/2019","Fleet Services","Fleet Management","R3200"
"Wolverhampton City Council","http://opendatacommunities.org/id/metropolitan-district-council/wolverhampton","701603","Arnold Clark Finance Limited","HI2504617","66.60","Hire of Vehicles","190579315","27/03/2019","Fleet Services","Fleet Management","R3200"
"Wolverhampton City Council","http://opendatacommunities.org/id/metropolitan-district-council/wolverhampton","701603","Arnold Clark Finance Limited","HI2504290","60.60","Hire of Vehicles","190579313","27/03/2019","Fleet Services","Fleet Management","R3200"
"Wolverhampton City Council","http://opendatacommunities.org/id/metropolitan-district-council/wolverhampton","701603","Arnold Clark Finance Limited","HI2504993","60.90","Hire of Vehicles","190579327","27/03/2019","Fleet Services","Fleet Management","R3200"
"Wolverhampton City Council","http://opendatacommunities.org/id/metropolitan-district-council/wolverhampton","701603","Arnold Clark Finance Limited","HI2505780","14.55","Hire of Vehicles","190579330","27/03/2019","Fleet Services","Fleet Management","R3200"
"Wolverhampton City Council","http://opendatacommunities.org/id/metropolitan-district-council/wolverhampton","701603","Arnold Clark Finance Limited","HI2507533","41.88","Hire of Vehicles","190579332","27/03/2019","Fleet Services","Fleet Management","R3200"
"Wolverhampton City Council","http://opendatacommunities.org/id/metropolitan-district-council/wolverhampton","701603","Arnold Clark Finance Limited","HI2514315","151.25","Hire of Vehicles","190579363","27/03/2019","Fleet Services","Fleet Management","R3200"
"Wolverhampton City Council","http://opendatacommunities.org/id/metropolitan-district-council/wolverhampton","701603","Arnold Clark Finance Limited","HI2508662","18.12","Hire of Vehicles","190579341","27/03/2019","Fleet Services","Fleet Management","R3200"
"Wolverhampton City Council","http://opendatacommunities.org/id/metropolitan-district-council/wolverhampton","701603","Arnold Clark Finance Limited","HI2508662","13.49","Hire of Vehicles","190579341","27/03/2019","Fleet Services","Fleet Management","R3200"
"Wolverhampton City Council","http://opendatacommunities.org/id/metropolitan-district-council/wolverhampton","701603","Arnold Clark Finance Limited","HI2511189","23.25","Hire of Vehicles","190579347","27/03/2019","Fleet Services","Fleet Management","R3200"
"Wolverhampton City Council","http://opendatacommunities.org/id/metropolitan-district-council/wolverhampton","701603","Arnold Clark Finance Limited","HI2508654","81.25","Hire of Vehicles","190579337","27/03/2019","Fleet Services","Fleet Management","R3200"
"Wolverhampton City Council","http://opendatacommunities.org/id/metropolitan-district-council/wolverhampton","701603","Arnold Clark Finance Limited","HI2509691","46.50","Hire of Vehicles","190579344","27/03/2019","Fleet Services","Fleet Management","R3200"
"Wolverhampton City Council","http://opendatacommunities.org/id/metropolitan-district-council/wolverhampton","701603","Arnold Clark Finance Limited","HI2512166","139.90","Hire of Vehicles","190579354","27/03/2019","Fleet Services","Fleet Management","R3200"
"Wolverhampton City Council","http://opendatacommunities.org/id/metropolitan-district-council/wolverhampton","701603","Arnold Clark Finance Limited","HI2503875","18.12","Hire of Vehicles","190579311","27/03/2019","Fleet Services","Fleet Management","R3200"
"Wolverhampton City Council","http://opendatacommunities.org/id/metropolitan-district-council/wolverhampton","701603","Arnold Clark Finance Limited","HI2503875","8.34","Hire of Vehicles","190579311","27/03/2019","Fleet Services","Fleet Management","R3200"
"Wolverhampton City Council","http://opendatacommunities.org/id/metropolitan-district-council/wolverhampton","701603","Arnold Clark Finance Limited","HI2504670","81.25","Hire of Vehicles","190579316","27/03/2019","Fleet Services","Fleet Management","R3200"
"Wolverhampton City Council","http://opendatacommunities.org/id/metropolitan-district-council/wolverhampton","701603","Arnold Clark Finance Limited","HI2502941","18.12","Hire of Vehicles","190579308","27/03/2019","Fleet Services","Fleet Management","R3200"
"Wolverhampton City Council","http://opendatacommunities.org/id/metropolitan-district-council/wolverhampton","701603","Arnold Clark Finance Limited","HI2502941","26.09","Hire of Vehicles","190579308","27/03/2019","Fleet Services","Fleet Management","R3200"
"Wolverhampton City Council","http://opendatacommunities.org/id/metropolitan-district-council/wolverhampton","701603","Arnold Clark Finance Limited","HI2405179","68.25","Hire of Vehicles","190579306","27/03/2019","Fleet Services","Fleet Management","R3200"
"Wolverhampton City Council","http://opendatacommunities.org/id/metropolitan-district-council/wolverhampton","701603","Arnold Clark Finance Limited","HI2504996","60.90","Hire of Vehicles","190579328","27/03/2019","Fleet Services","Fleet Management","R3200"
"Wolverhampton City Council","http://opendatacommunities.org/id/metropolitan-district-council/wolverhampton","701603","Arnold Clark Finance Limited","HI2504745","23.25","Hire of Vehicles","190579320","27/03/2019","Fleet Services","Fleet Management","R3200"
"Wolverhampton City Council","http://opendatacommunities.org/id/metropolitan-district-council/wolverhampton","701603","Arnold Clark Finance Limited","HI2513786","23.25","Hire of Vehicles","190579362","27/03/2019","Fleet Services","Fleet Management","R3200"
"Wolverhampton City Council","http://opendatacommunities.org/id/metropolitan-district-council/wolverhampton","701603","Arnold Clark Finance Limited","HI2504919","33.25","Hire of Vehicles","190579322","27/03/2019","Fleet Services","Fleet Management","R3200"
"Wolverhampton City Council","http://opendatacommunities.org/id/metropolitan-district-council/wolverhampton","701603","Arnold Clark Finance Limited","HI2508345","41.88","Hire of Vehicles","190579334","27/03/2019","Fleet Services","Fleet Management","R3200"
"Wolverhampton City Council","http://opendatacommunities.org/id/metropolitan-district-council/wolverhampton","701603","Arnold Clark Finance Limited","HI2514317","151.25","Hire of Vehicles","190579364","27/03/2019","Fleet Services","Fleet Management","R3200"
"Wolverhampton City Council","http://opendatacommunities.org/id/metropolitan-district-council/wolverhampton","701603","Arnold Clark Finance Limited","HI2506619","12.18","Hire of Vehicles","190579331","27/03/2019","Fleet Services","Fleet Management","R3200"
"Wolverhampton City Council","http://opendatacommunities.org/id/metropolitan-district-council/wolverhampton","701603","Arnold Clark Finance Limited","HI2512164","81.25","Hire of Vehicles","190579352","27/03/2019","Fleet Services","Fleet Management","R3200"
"Wolverhampton City Council","http://opendatacommunities.org/id/metropolitan-district-council/wolverhampton","701603","Arnold Clark Finance Limited","HI2512167","36.24","Hire of Vehicles","190579355","27/03/2019","Fleet Services","Fleet Management","R3200"
"Wolverhampton City Council","http://opendatacommunities.org/id/metropolitan-district-council/wolverhampton","701613","Arthur Brett (Catering) Limited","ID1091692","104.22","Provisions (Resale)","130247177","20/03/2019","Visitor Economy","Bantock - Tea Rooms","R4102"
"Wolverhampton City Council","http://opendatacommunities.org/id/metropolitan-district-council/wolverhampton","701613","Arthur Brett (Catering) Limited","ID1093260","20.94","Provisions (Resale)","130247697","20/03/2019","Visitor Economy","Art Gallery Tea Room","R4102"
"Wolverhampton City Council","http://opendatacommunities.org/id/metropolitan-district-council/wolverhampton","701613","Arthur Brett (Catering) Limited","ID1092097","31.33","Provisions (Resale)","130247178","20/03/2019","Older People Provider Services","Blakenhall Resource Centre","R4102"
"Wolverhampton City Council","http://opendatacommunities.org/id/metropolitan-district-council/wolverhampton","701613","Arthur Brett (Catering) Limited","ID1089700","27.75","Provisions (Resale)","130245986","20/03/2019","Visitor Economy","Art Gallery Tea Room","R4102"
"Wolverhampton City Council","http://opendatacommunities.org/id/metropolitan-district-council/wolverhampton","701613","Arthur Brett (Catering) Limited","ID1090463","84.78","Provisions (Resale)","130246573","20/03/2019","Visitor Economy","Bantock - Tea Rooms","R4102"
"Wolverhampton City Council","http://opendatacommunities.org/id/metropolitan-district-council/wolverhampton","701613","Arthur Brett (Catering) Limited","ID1089768","101.90","Provisions (Resale)","130245987","20/03/2019","Visitor Economy","Bantock - Tea Rooms","R4102"
"Wolverhampton City Council","http://opendatacommunities.org/id/metropolitan-district-council/wolverhampton","701613","Arthur Brett (Catering) Limited","ID1090489","58.23","Provisions (Resale)","130246574","20/03/2019","Visitor Economy","Art Gallery Tea Room","R4102"
"Wolverhampton City Council","http://opendatacommunities.org/id/metropolitan-district-council/wolverhampton","701613","Arthur Brett (Catering) Limited","ID1090617","40.09","Provisions (Resale)","130246576","20/03/2019","Visitor Economy","Art Gallery Tea Room","R4102"
"Wolverhampton City Council","http://opendatacommunities.org/id/metropolitan-district-council/wolverhampton","701613","Arthur Brett (Catering) Limited","ID1093229","123.63","Provisions (Resale)","130247696","20/03/2019","Visitor Economy","Bantock - Tea Rooms","R4102"
"Wolverhampton City Council","http://opendatacommunities.org/id/metropolitan-district-council/wolverhampton","701613","Arthur Brett (Catering) Limited","ID1087333","10.93","Provisions (Resale)","130244578","06/03/2019","Catering","West Park Tea Room","R4102"
"Wolverhampton City Council","http://opendatacommunities.org/id/metropolitan-district-council/wolverhampton","701613","Arthur Brett (Catering) Limited","ID1087423","98.42","Provisions (Resale)","130244579","20/03/2019","Visitor Economy","Bantock - Tea Rooms","R4102"
"Wolverhampton City Council","http://opendatacommunities.org/id/metropolitan-district-council/wolverhampton","701613","Arthur Brett (Catering) Limited","ID1088732","110.16","Provisions (Resale)","130245586","20/03/2019","Visitor Economy","Bantock - Tea Rooms","R4102"
"Wolverhampton City Council","http://opendatacommunities.org/id/metropolitan-district-council/wolverhampton","701613","Arthur Brett (Catering) Limited","ID1091264","48.91","Provisions (Resale)","130246784","20/03/2019","Visitor Economy","Art Gallery Tea Room","R4102"
"Wolverhampton City Council","http://opendatacommunities.org/id/metropolitan-district-council/wolverhampton","701613","Arthur Brett (Catering) Limited","ID1090537","14.33","Provisions (Resale)","130246575","20/03/2019","Visitor Economy","Art Gallery Tea Room","R4102"
"Wolverhampton City Council","http://opendatacommunities.org/id/metropolitan-district-council/wolverhampton","701613","Arthur Brett (Catering) Limited","ID1086987","101.55","Provisions (Resale)","130244412","20/03/2019","Visitor Economy","Bantock - Tea Rooms","R4102"
"Wolverhampton City Council","http://opendatacommunities.org/id/metropolitan-district-council/wolverhampton","701613","Arthur Brett (Catering) Limited","ID1086257","84.50","Provisions (Resale)","130243976","20/03/2019","Visitor Economy","Bantock - Tea Rooms","R4102"
"Wolverhampton City Council","http://opendatacommunities.org/id/metropolitan-district-council/wolverhampton","701613","Arthur Brett (Catering) Limited","ID1091663","25.98","Provisions (Resale)","130247176","20/03/2019","Visitor Economy","Art Gallery Tea Room","R4102"
"Wolverhampton City Council","http://opendatacommunities.org/id/metropolitan-district-council/wolverhampton","701613","Arthur Brett (Catering) Limited","ID1088661","12.98","Provisions (Resale)","130245457","06/03/2019","Catering","West Park Tea Room","R4102"
"Wolverhampton City Council","http://opendatacommunities.org/id/metropolitan-district-council/wolverhampton","701613","Arthur Brett (Catering) Limited","ID1087908","8.43","Provisions (Resale)","130244894","06/03/2019","Catering","West Park Tea Room","R4102"
"Wolverhampton City Council","http://opendatacommunities.org/id/metropolitan-district-council/wolverhampton","701613","Arthur Brett (Catering) Limited","ID1094135","17.55","Provisions (Resale)","130247951","27/03/2019","Older People Provider Services","Blakenhall Resource Centre","R4102"
"Wolverhampton City Council","http://opendatacommunities.org/id/metropolitan-district-council/wolverhampton","701613","Arthur Brett (Catering) Limited","ID1093906","33.13","Provisions (Resale)","130247950","27/03/2019","Visitor Economy","Art Gallery Tea Room","R4102"
"Wolverhampton City Council","http://opendatacommunities.org/id/metropolitan-district-council/wolverhampton","701613","Arthur Brett (Catering) Limited","ID1093675","11.58","Provisions (Resale)","130247949","27/03/2019","Catering","West Park Tea Room","R4102"
"Wolverhampton City Council","http://opendatacommunities.org/id/metropolitan-district-council/wolverhampton","701613","Arthur Brett (Catering) Limited","ID1094363","76.93","Provisions (Resale)","130248282","27/03/2019","Visitor Economy","Bantock - Tea Rooms","R4102"
"Wolverhampton City Council","http://opendatacommunities.org/id/metropolitan-district-council/wolverhampton","701613","Arthur Brett (Catering) Limited","ID1094363","101.55","Provisions (Resale)","130248282","27/03/2019","Visitor Economy","Bantock - Tea Rooms","R4102"
"Wolverhampton City Council","http://opendatacommunities.org/id/metropolitan-district-council/wolverhampton","701613","Arthur Brett (Catering) Limited","2802192","24.54","Provisions (Resale)","130248425","27/03/2019","Leisure Services","WV Active Catering","R4102"
"Wolverhampton City Council","http://opendatacommunities.org/id/metropolitan-district-council/wolverhampton","701613","Arthur Brett (Catering) Limited","2802194","1,310.02","Provisions (Resale)","130248427","27/03/2019","Catering","Civic Centre Catering","R4102"
"Wolverhampton City Council","http://opendatacommunities.org/id/metropolitan-district-council/wolverhampton","701613","Arthur Brett (Catering) Limited","2802191","28,158.91","Provisions (Resale)","130248424","27/03/2019","Catering","Education Catering - General Overheads","R4102"
"Wolverhampton City Council","http://opendatacommunities.org/id/metropolitan-district-council/wolverhampton","701613","Arthur Brett (Catering) Limited","2802193","58.04","Provisions (Resale)","130248426","27/03/2019","Leisure Services","Bert Williams Leisure Centre Caf�","R4102"
"Wolverhampton City Council","http://opendatacommunities.org/id/metropolitan-district-council/wolverhampton","701613","Arthur Brett (Catering) Limited","ID1089779","6.51","Provisions (Resale)","130245988","08/03/2019","Catering","West Park Tea Room","R4102"
"Wolverhampton City Council","http://opendatacommunities.org/id/metropolitan-district-council/wolverhampton","701613","Arthur Brett (Catering) Limited","2802195","125.98","Provisions (Resale)","130248428","27/03/2019","Catering","Meals on Wheels","R4102"
"Wolverhampton City Council","http://opendatacommunities.org/id/metropolitan-district-council/wolverhampton","701613","Arthur Brett (Catering) Limited","3101194","77.17","Provisions (Resale)","130246352","13/03/2019","Leisure Services","WV Active Catering","R4102"
"Wolverhampton City Council","http://opendatacommunities.org/id/metropolitan-district-council/wolverhampton","701613","Arthur Brett (Catering) Limited","3101192","1,161.78","Provisions (Resale)","130246350","13/03/2019","Catering","Civic Centre Catering","R4102"
"Wolverhampton City Council","http://opendatacommunities.org/id/metropolitan-district-council/wolverhampton","701613","Arthur Brett (Catering) Limited","ID1088365","149.75","Provisions (Resale)","130245231","01/03/2019","Visitor Economy","Bantock - Tea Rooms","R4102"
"Wolverhampton City Council","http://opendatacommunities.org/id/metropolitan-district-council/wolverhampton","701613","Arthur Brett (Catering) Limited","ID1088321","54.77","Provisions (Resale)","130245230","01/03/2019","Visitor Economy","Art Gallery Tea Room","R4102"
"Wolverhampton City Council","http://opendatacommunities.org/id/metropolitan-district-council/wolverhampton","701613","Arthur Brett (Catering) Limited","3101195","55.00","Provisions (Resale)","130246353","13/03/2019","Leisure Services","Bert Williams Leisure Centre Caf�","R4102"
"Wolverhampton City Council","http://opendatacommunities.org/id/metropolitan-district-council/wolverhampton","701613","Arthur Brett (Catering) Limited","3101191","43,231.71","Provisions (Resale)","130246349","13/03/2019","Catering","Education Catering - General Overheads","R4102"
"Wolverhampton City Council","http://opendatacommunities.org/id/metropolitan-district-council/wolverhampton","701613","Arthur Brett (Catering) Limited","ID1089781","10.74","Provisions (Resale)","130246176","13/03/2019","Catering","West Park Tea Room","R4102"
"Wolverhampton City Council","http://opendatacommunities.org/id/metropolitan-district-council/wolverhampton","701613","Arthur Brett (Catering) Limited","3101193","119.77","Provisions (Resale)","130246351","13/03/2019","Catering","Meals on Wheels","R4102"
"Wolverhampton City Council","http://opendatacommunities.org/id/metropolitan-district-council/wolverhampton","701613","Arthur Brett (Catering) Limited","ID1089733","18.90","Provisions (Resale)","130246175","13/03/2019","Older People Provider Services","Blakenhall Resource Centre","R4102"
"Wolverhampton City Council","http://opendatacommunities.org/id/metropolitan-district-council/wolverhampton","701613","Arthur Brett (Catering) Limited","ID1088490","28.91","Provisions (Resale)","130245456","06/03/2019","Older People Provider Services","Blakenhall Resource Centre","R4102"
"Wolverhampton City Council","http://opendatacommunities.org/id/metropolitan-district-council/wolverhampton","701616","Arthur M Griffiths & Son Limited","IN17773","99,161.22","Construction and Conversion","130248429","27/03/2019","-","Primary Expansion Programme","C1100"
"Wolverhampton City Council","http://opendatacommunities.org/id/metropolitan-district-council/wolverhampton","701636","Asdan Limited","282165","729.45","Training Expenses","130246785","27/03/2019","Youth Offending","Bilston Junior Attendance Centre","R1650"
"Wolverhampton City Council","http://opendatacommunities.org/id/metropolitan-district-council/wolverhampton","701636","Asdan Limited","281491","364.00","Training Expenses","130246577","08/03/2019","Headstart","Headstart - Young People Engagement","R1650"
"Wolverhampton City Council","http://opendatacommunities.org/id/metropolitan-district-council/wolverhampton","701643","Ashdown Supplies","15915","376.80","Materials","130247408","20/03/2019","Bereavement Services","Cemeteries","R4007"
"Wolverhampton City Council","http://opendatacommunities.org/id/metropolitan-district-council/wolverhampton","701648","Ashmore Park Community Association","18039","49.50","Room Hire","130248599","27/03/2019","Community Safety","SWP - Infrastructure","R2201"
"Wolverhampton City Council","http://opendatacommunities.org/id/metropolitan-district-council/wolverhampton","701656","Askews & Holts Library Services Limited","5959348","17.69","Books","130243981","08/03/2019","Local Economy","Global Budgets","R4309"
"Wolverhampton City Council","http://opendatacommunities.org/id/metropolitan-district-council/wolverhampton","701656","Askews & Holts Library Services Limited","5965894","21.44","Books","130243999","08/03/2019","Local Economy","Global Budgets","R4309"
"Wolverhampton City Council","http://opendatacommunities.org/id/metropolitan-district-council/wolverhampton","701656","Askews & Holts Library Services Limited","5965884","5.65","Books","130243991","08/03/2019","Local Economy","Global Budgets","R4309"
"Wolverhampton City Council","http://opendatacommunities.org/id/metropolitan-district-council/wolverhampton","701656","Askews & Holts Library Services Limited","5959358","48.14","Books","130243987","08/03/2019","Local Economy","Global Budgets","R4309"
"Wolverhampton City Council","http://opendatacommunities.org/id/metropolitan-district-council/wolverhampton","701656","Askews & Holts Library Services Limited","5959347","12.04","Books","130243980","08/03/2019","Local Economy","Global Budgets","R4309"
"Wolverhampton City Council","http://opendatacommunities.org/id/metropolitan-district-council/wolverhampton","701656","Askews & Holts Library Services Limited","5965888","32.74","Books","130243995","08/03/2019","Local Economy","Global Budgets","R4309"
"Wolverhampton City Council","http://opendatacommunities.org/id/metropolitan-district-council/wolverhampton","701656","Askews & Holts Library Services Limited","5959352","31.46","Books","130243985","08/03/2019","Local Economy","Global Budgets","R4309"
"Wolverhampton City Council","http://opendatacommunities.org/id/metropolitan-district-council/wolverhampton","701656","Askews & Holts Library Services Limited","5965885","16.37","Books","130243992","08/03/2019","Local Economy","Global Budgets","R4309"
"Wolverhampton City Council","http://opendatacommunities.org/id/metropolitan-district-council/wolverhampton","701656","Askews & Holts Library Services Limited","5965893","56.37","Books","130243998","08/03/2019","Local Economy","Global Budgets","R4309"
"Wolverhampton City Council","http://opendatacommunities.org/id/metropolitan-district-council/wolverhampton","701656","Askews & Holts Library Services Limited","5965895","254.19","Books","130244280","08/03/2019","Local Economy","Global Budgets","R4309"
"Wolverhampton City Council","http://opendatacommunities.org/id/metropolitan-district-council/wolverhampton","701656","Askews & Holts Library Services Limited","5965887","11.30","Books","130243994","08/03/2019","Local Economy","Global Budgets","R4309"
"Wolverhampton City Council","http://opendatacommunities.org/id/metropolitan-district-council/wolverhampton","701656","Askews & Holts Library Services Limited","5959350","23.49","Books","130243983","08/03/2019","Local Economy","Global Budgets","R4309"
"Wolverhampton City Council","http://opendatacommunities.org/id/metropolitan-district-council/wolverhampton","701656","Askews & Holts Library Services Limited","5959390","10.72","Books","130243143","08/03/2019","Local Economy","Global Budgets","R4309"
"Wolverhampton City Council","http://opendatacommunities.org/id/metropolitan-district-council/wolverhampton","701656","Askews & Holts Library Services Limited","5935408","229.71","Books","130248284","27/03/2019","Local Economy","Global Budgets","R4309"
"Wolverhampton City Council","http://opendatacommunities.org/id/metropolitan-district-council/wolverhampton","701656","Askews & Holts Library Services Limited","5971351","7.97","Books","130245688","15/03/2019","Local Economy","Global Budgets","R4309"
"Wolverhampton City Council","http://opendatacommunities.org/id/metropolitan-district-council/wolverhampton","701656","Askews & Holts Library Services Limited","5936442","9.56","Books","130240624","15/03/2019","Local Economy","Global Budgets","R4309"
"Wolverhampton City Council","http://opendatacommunities.org/id/metropolitan-district-council/wolverhampton","701656","Askews & Holts Library Services Limited","5946567","5.65","Books","130241663","15/03/2019","Local Economy","Global Budgets","R4309"
"Wolverhampton City Council","http://opendatacommunities.org/id/metropolitan-district-council/wolverhampton","701656","Askews & Holts Library Services Limited","5959385","5.07","Books","130243140","15/03/2019","Local Economy","Global Budgets","R4309"
"Wolverhampton City Council","http://opendatacommunities.org/id/metropolitan-district-council/wolverhampton","701656","Askews & Holts Library Services Limited","5936439","5.65","Books","130240886","15/03/2019","Local Economy","Global Budgets","R4309"
"Wolverhampton City Council","http://opendatacommunities.org/id/metropolitan-district-council/wolverhampton","701656","Askews & Holts Library Services Limited","5936440","5.07","Books","130240622","15/03/2019","Local Economy","Global Budgets","R4309"
"Wolverhampton City Council","http://opendatacommunities.org/id/metropolitan-district-council/wolverhampton","701656","Askews & Holts Library Services Limited","5971353","14.20","Books","130245690","15/03/2019","Local Economy","Global Budgets","R4309"
"Wolverhampton City Council","http://opendatacommunities.org/id/metropolitan-district-council/wolverhampton","701656","Askews & Holts Library Services Limited","5971356","34.20","Books","130245691","15/03/2019","Local Economy","Global Budgets","R4309"
"Wolverhampton City Council","http://opendatacommunities.org/id/metropolitan-district-council/wolverhampton","701656","Askews & Holts Library Services Limited","5939780","5.65","Books","130241650","15/03/2019","Local Economy","Global Budgets","R4309"
"Wolverhampton City Council","http://opendatacommunities.org/id/metropolitan-district-council/wolverhampton","701656","Askews & Holts Library Services Limited","5953359","5.07","Books","130242545","15/03/2019","Local Economy","Global Budgets","R4309"
"Wolverhampton City Council","http://opendatacommunities.org/id/metropolitan-district-council/wolverhampton","701656","Askews & Holts Library Services Limited","5972046","5.06","Books","130244896","15/03/2019","Local Economy","Global Budgets","R4309"
"Wolverhampton City Council","http://opendatacommunities.org/id/metropolitan-district-council/wolverhampton","701656","Askews & Holts Library Services Limited","5972046","81.76","Books","130244896","15/03/2019","Local Economy","Global Budgets","R4309"
"Wolverhampton City Council","http://opendatacommunities.org/id/metropolitan-district-council/wolverhampton","701656","Askews & Holts Library Services Limited","5972046","5.64","Books","130244896","15/03/2019","Local Economy","Global Budgets","R4309"
"Wolverhampton City Council","http://opendatacommunities.org/id/metropolitan-district-council/wolverhampton","701656","Askews & Holts Library Services Limited","5972046","5.64","Books","130244896","15/03/2019","Local Economy","Global Budgets","R4309"
"Wolverhampton City Council","http://opendatacommunities.org/id/metropolitan-district-council/wolverhampton","701656","Askews & Holts Library Services Limited","5972046","5.64","Books","130244896","15/03/2019","Local Economy","Global Budgets","R4309"
"Wolverhampton City Council","http://opendatacommunities.org/id/metropolitan-district-council/wolverhampton","701656","Askews & Holts Library Services Limited","5972046","9.54","Books","130244896","15/03/2019","Local Economy","Global Budgets","R4309"
"Wolverhampton City Council","http://opendatacommunities.org/id/metropolitan-district-council/wolverhampton","701656","Askews & Holts Library Services Limited","5972046","5.64","Books","130244896","15/03/2019","Local Economy","Global Budgets","R4309"
"Wolverhampton City Council","http://opendatacommunities.org/id/metropolitan-district-council/wolverhampton","701656","Askews & Holts Library Services Limited","5972046","5.06","Books","130244896","15/03/2019","Local Economy","Global Budgets","R4309"
"Wolverhampton City Council","http://opendatacommunities.org/id/metropolitan-district-council/wolverhampton","701656","Askews & Holts Library Services Limited","5971355","12.03","Books","130244895","15/03/2019","Local Economy","Global Budgets","R4309"
"Wolverhampton City Council","http://opendatacommunities.org/id/metropolitan-district-council/wolverhampton","701656","Askews & Holts Library Services Limited","5965882","51.46","Books","130243989","08/03/2019","Local Economy","Global Budgets","R4309"
"Wolverhampton City Council","http://opendatacommunities.org/id/metropolitan-district-council/wolverhampton","701656","Askews & Holts Library Services Limited","5959345","24.65","Books","130243978","08/03/2019","Local Economy","Global Budgets","R4309"
"Wolverhampton City Council","http://opendatacommunities.org/id/metropolitan-district-council/wolverhampton","701656","Askews & Holts Library Services Limited","5965883","39.28","Books","130243990","08/03/2019","Local Economy","Global Budgets","R4309"
"Wolverhampton City Council","http://opendatacommunities.org/id/metropolitan-district-council/wolverhampton","701656","Askews & Holts Library Services Limited","5959395","365.69","Books","130243146","01/03/2019","Local Economy","Global Budgets","R4309"
"Wolverhampton City Council","http://opendatacommunities.org/id/metropolitan-district-council/wolverhampton","701656","Askews & Holts Library Services Limited","5959383","12.46","Books","130243138","01/03/2019","Local Economy","Global Budgets","R4309"
"Wolverhampton City Council","http://opendatacommunities.org/id/metropolitan-district-council/wolverhampton","701656","Askews & Holts Library Services Limited","5959388","30.14","Books","130243141","01/03/2019","Local Economy","Global Budgets","R4309"
"Wolverhampton City Council","http://opendatacommunities.org/id/metropolitan-district-council/wolverhampton","701656","Askews & Holts Library Services Limited","5959393","13.62","Books","130243144","01/03/2019","Local Economy","Global Budgets","R4309"
"Wolverhampton City Council","http://opendatacommunities.org/id/metropolitan-district-council/wolverhampton","701656","Askews & Holts Library Services Limited","5959391","15.79","Books","130243391","01/03/2019","Local Economy","Global Budgets","R4309"
"Wolverhampton City Council","http://opendatacommunities.org/id/metropolitan-district-council/wolverhampton","701656","Askews & Holts Library Services Limited","5959389","19.42","Books","130243142","01/03/2019","Local Economy","Global Budgets","R4309"
"Wolverhampton City Council","http://opendatacommunities.org/id/metropolitan-district-council/wolverhampton","701656","Askews & Holts Library Services Limited","5959392","13.62","Books","130243592","01/03/2019","Local Economy","Global Budgets","R4309"
"Wolverhampton City Council","http://opendatacommunities.org/id/metropolitan-district-council/wolverhampton","701656","Askews & Holts Library Services Limited","5959359","134.62","Books","130243988","08/03/2019","Local Economy","Global Budgets","R4309"
"Wolverhampton City Council","http://opendatacommunities.org/id/metropolitan-district-council/wolverhampton","701656","Askews & Holts Library Services Limited","5965886","60.87","Books","130243993","08/03/2019","Local Economy","Global Budgets","R4309"
"Wolverhampton City Council","http://opendatacommunities.org/id/metropolitan-district-council/wolverhampton","701656","Askews & Holts Library Services Limited","5959349","12.61","Books","130243982","08/03/2019","Local Economy","Global Budgets","R4309"
"Wolverhampton City Council","http://opendatacommunities.org/id/metropolitan-district-council/wolverhampton","701656","Askews & Holts Library Services Limited","5959396","76.45","Books","130243147","01/03/2019","Local Economy","Global Budgets","R4309"
"Wolverhampton City Council","http://opendatacommunities.org/id/metropolitan-district-council/wolverhampton","701656","Askews & Holts Library Services Limited","5959382","22.17","Books","130243137","01/03/2019","Local Economy","Global Budgets","R4309"
"Wolverhampton City Council","http://opendatacommunities.org/id/metropolitan-district-council/wolverhampton","701656","Askews & Holts Library Services Limited","5936441","5.65","Books","130240623","15/03/2019","Local Economy","Global Budgets","R4309"
"Wolverhampton City Council","http://opendatacommunities.org/id/metropolitan-district-council/wolverhampton","701656","Askews & Holts Library Services Limited","5971352","12.03","Books","130245689","15/03/2019","Local Economy","Global Budgets","R4309"
"Wolverhampton City Council","http://opendatacommunities.org/id/metropolitan-district-council/wolverhampton","701656","Askews & Holts Library Services Limited","5971357","10.29","Books","130245692","15/03/2019","Local Economy","Global Budgets","R4309"
"Wolverhampton City Council","http://opendatacommunities.org/id/metropolitan-district-council/wolverhampton","701656","Askews & Holts Library Services Limited","5974065","5.79","Books","130245587","20/03/2019","Local Economy","Global Budgets","R4309"
"Wolverhampton City Council","http://opendatacommunities.org/id/metropolitan-district-council/wolverhampton","701656","Askews & Holts Library Services Limited","5965890","7.97","Books","130243997","13/03/2019","Local Economy","Global Budgets","R4309"
"Wolverhampton City Council","http://opendatacommunities.org/id/metropolitan-district-council/wolverhampton","701656","Askews & Holts Library Services Limited","5959355","5.65","Books","130244760","13/03/2019","Local Economy","Global Budgets","R4309"
"Wolverhampton City Council","http://opendatacommunities.org/id/metropolitan-district-council/wolverhampton","701656","Askews & Holts Library Services Limited","5959384","5.65","Books","130243139","13/03/2019","Local Economy","Global Budgets","R4309"
"Wolverhampton City Council","http://opendatacommunities.org/id/metropolitan-district-council/wolverhampton","701656","Askews & Holts Library Services Limited","5959357","5.65","Books","130244761","13/03/2019","Local Economy","Global Budgets","R4309"
"Wolverhampton City Council","http://opendatacommunities.org/id/metropolitan-district-council/wolverhampton","701656","Askews & Holts Library Services Limited","5959353","0.01","Books","130244759","13/03/2019","Local Economy","Global Budgets","R4309"
"Wolverhampton City Council","http://opendatacommunities.org/id/metropolitan-district-council/wolverhampton","701656","Askews & Holts Library Services Limited","5959353","16.36","Books","130244759","13/03/2019","Local Economy","Global Budgets","R4309"
"Wolverhampton City Council","http://opendatacommunities.org/id/metropolitan-district-council/wolverhampton","701656","Askews & Holts Library Services Limited","5959386","5.65","Books","130243389","13/03/2019","Local Economy","Global Budgets","R4309"
"Wolverhampton City Council","http://opendatacommunities.org/id/metropolitan-district-council/wolverhampton","701656","Askews & Holts Library Services Limited","5968742","8.23","Books","130244580","13/03/2019","Local Economy","Global Budgets","R4309"
"Wolverhampton City Council","http://opendatacommunities.org/id/metropolitan-district-council/wolverhampton","701656","Askews & Holts Library Services Limited","5959387","5.65","Books","130243390","13/03/2019","Local Economy","Global Budgets","R4309"
"Wolverhampton City Council","http://opendatacommunities.org/id/metropolitan-district-council/wolverhampton","701656","Askews & Holts Library Services Limited","5971354","12.03","Books","130248430","27/03/2019","Local Economy","Global Budgets","R4309"
"Wolverhampton City Council","http://opendatacommunities.org/id/metropolitan-district-council/wolverhampton","701656","Askews & Holts Library Services Limited","5959346","25.66","Books","130243979","08/03/2019","Local Economy","Global Budgets","R4309"
"Wolverhampton City Council","http://opendatacommunities.org/id/metropolitan-district-council/wolverhampton","701656","Askews & Holts Library Services Limited","5965892","71.16","Books","130244279","08/03/2019","Local Economy","Global Budgets","R4309"
"Wolverhampton City Council","http://opendatacommunities.org/id/metropolitan-district-council/wolverhampton","701656","Askews & Holts Library Services Limited","5965891","100.88","Books","130244278","08/03/2019","Local Economy","Global Budgets","R4309"
"Wolverhampton City Council","http://opendatacommunities.org/id/metropolitan-district-council/wolverhampton","701656","Askews & Holts Library Services Limited","5959354","22.90","Books","130244277","08/03/2019","Local Economy","Global Budgets","R4309"
"Wolverhampton City Council","http://opendatacommunities.org/id/metropolitan-district-council/wolverhampton","701656","Askews & Holts Library Services Limited","5965889","31.45","Books","130243996","08/03/2019","Local Economy","Global Budgets","R4309"
"Wolverhampton City Council","http://opendatacommunities.org/id/metropolitan-district-council/wolverhampton","701656","Askews & Holts Library Services Limited","5959394","17.69","Books","130243145","08/03/2019","Local Economy","Global Budgets","R4309"
"Wolverhampton City Council","http://opendatacommunities.org/id/metropolitan-district-council/wolverhampton","701656","Askews & Holts Library Services Limited","5959351","15.21","Books","130243984","08/03/2019","Local Economy","Global Budgets","R4309"
"Wolverhampton City Council","http://opendatacommunities.org/id/metropolitan-district-council/wolverhampton","701668","Ass.Of W.Mids Parent P�Ship Services","CF023/2018","200.00","Subscriptions","130244897","20/03/2019","Director of Education","SENDIASS","R4701"
"Wolverhampton City Council","http://opendatacommunities.org/id/metropolitan-district-council/wolverhampton","701680","Associated  Radio Taxi�s","INV187","64.80","Client Transport","130248601","27/03/2019","Community Financial Support","Destitute Plus","R3042"
"Wolverhampton City Council","http://opendatacommunities.org/id/metropolitan-district-council/wolverhampton","701680","Associated  Radio Taxi�s","ART-18-0047","773.64","Client Transport","130247553","15/03/2019","Special Educational Needs","Secondary- Transport","R3042"
"Wolverhampton City Council","http://opendatacommunities.org/id/metropolitan-district-council/wolverhampton","701680","Associated  Radio Taxi�s","ART-18-0044","318.24","Client Transport","130247550","15/03/2019","Special Educational Needs","Special - Transport","R3042"
"Wolverhampton City Council","http://opendatacommunities.org/id/metropolitan-district-council/wolverhampton","701680","Associated  Radio Taxi�s","ART-18-0045","829.64","Client Transport","130247551","15/03/2019","Special Educational Needs","Special - Transport","R3042"
"Wolverhampton City Council","http://opendatacommunities.org/id/metropolitan-district-council/wolverhampton","701680","Associated  Radio Taxi�s","ART-18-0049","962.48","Client Transport","130247410","15/03/2019","Special Educational Needs","Special - Transport","R3042"
"Wolverhampton City Council","http://opendatacommunities.org/id/metropolitan-district-council/wolverhampton","701680","Associated  Radio Taxi�s","ART-18-0042","929.40","Client Transport","130247548","15/03/2019","Special Educational Needs","Secondary- Transport","R3042"
"Wolverhampton City Council","http://opendatacommunities.org/id/metropolitan-district-council/wolverhampton","701680","Associated  Radio Taxi�s","ART-18-0048","712.50","Client Transport","130247409","15/03/2019","Special Educational Needs","Secondary- Transport","R3042"
"Wolverhampton City Council","http://opendatacommunities.org/id/metropolitan-district-council/wolverhampton","701680","Associated  Radio Taxi�s","ART-18-0043","1,004.55","Client Transport","130247549","15/03/2019","Special Educational Needs","Primary - Transport","R3042"
"Wolverhampton City Council","http://opendatacommunities.org/id/metropolitan-district-council/wolverhampton","701680","Associated  Radio Taxi�s","ART-18-0046","706.10","Client Transport","130247552","15/03/2019","Special Educational Needs","Special - Transport","R3042"
"Wolverhampton City Council","http://opendatacommunities.org/id/metropolitan-district-council/wolverhampton","701680","Associated  Radio Taxi�s","INV175","39.60","Client Transport","130246790","13/03/2019","Adults Assessment & Care Management West","Adult Services � West","R3042"
"Wolverhampton City Council","http://opendatacommunities.org/id/metropolitan-district-council/wolverhampton","701739","Axiom Building Solutions","06971","16,750.00","R&M - Departmental planned (external)","130244899","20/03/2019","Facilities Management","Magistrates","R2001"
"Wolverhampton City Council","http://opendatacommunities.org/id/metropolitan-district-council/wolverhampton","701739","Axiom Building Solutions","07001","2,450.00","R&M - Departmental planned (external)","130244763","15/03/2019","Corporate Asset Management","Statutory Surveys","R2001"
"Wolverhampton City Council","http://opendatacommunities.org/id/metropolitan-district-council/wolverhampton","701739","Axiom Building Solutions","07002","2,500.00","R&M - Departmental planned (external)","130245588","15/03/2019","Facilities Management","Magistrates","R2001"
"Wolverhampton City Council","http://opendatacommunities.org/id/metropolitan-district-council/wolverhampton","701784","Bains Supersave Limited","APNEWS059","49.00","Books","130247411","13/03/2019","Local Economy","Global Budgets","R4309"
"Wolverhampton City Council","http://opendatacommunities.org/id/metropolitan-district-council/wolverhampton","701787","Baker Hall Limited","WV/02/19","1,312.50","Services - Consultants","130246585","27/03/2019","Planning","Building Consultancy","R4404"
"Wolverhampton City Council","http://opendatacommunities.org/id/metropolitan-district-council/wolverhampton","701788","Baker Ross Limited","SO1277508","186.18","Equipment - Purchase","130247953","27/03/2019","Local Economy","Global Budgets","R4000"
"Wolverhampton City Council","http://opendatacommunities.org/id/metropolitan-district-council/wolverhampton","701817","Base 25","3748","420.00","Section 17","130244901","06/03/2019","Strengthening Families","CP Area 4- Bingley","R6403"
"Wolverhampton City Council","http://opendatacommunities.org/id/metropolitan-district-council/wolverhampton","701817","Base 25","3756","1,950.00","Grant Payments","130244902","20/03/2019","Community Safety","Early Intervention Youth Fund","R4700"
"Wolverhampton City Council","http://opendatacommunities.org/id/metropolitan-district-council/wolverhampton","701817","Base 25","3754","880.00","TPP - Social Care Support Services","130247554","15/03/2019","Strengthening Families","CP Area 5-Whitemore Reans","R5501"
"Wolverhampton City Council","http://opendatacommunities.org/id/metropolitan-district-council/wolverhampton","701832","Bbp.Security Services & Training Limited","408WCC060319","356.50","Services - Security","130247555","20/03/2019","Leisure Services","Bert Williams Leisure Centre","R4405"
"Wolverhampton City Council","http://opendatacommunities.org/id/metropolitan-district-council/wolverhampton","701832","Bbp.Security Services & Training Limited","410WCC120319","6,167.75","Services - Security","130247698","20/03/2019","Markets","Wolverhampton Indoor and Open Market","R4405"
"Wolverhampton City Council","http://opendatacommunities.org/id/metropolitan-district-council/wolverhampton","701832","Bbp.Security Services & Training Limited","412WCC120319","2,286.00","Services - Security","130247700","20/03/2019","Markets","Bilston Market and Licensed Operations","R4405"
"Wolverhampton City Council","http://opendatacommunities.org/id/metropolitan-district-council/wolverhampton","701832","Bbp.Security Services & Training Limited","415WCC180319","256.00","Services - Security","130248440","27/03/2019","Maintenance Programme","Asset Management Team","R4405"
"Wolverhampton City Council","http://opendatacommunities.org/id/metropolitan-district-council/wolverhampton","701832","Bbp.Security Services & Training Limited","420WCC180319","2,100.00","Services - Security","130248445","27/03/2019","Facilities Management","i10 Facilities Management","R4405"
"Wolverhampton City Council","http://opendatacommunities.org/id/metropolitan-district-council/wolverhampton","701832","Bbp.Security Services & Training Limited","417WCC180319","6,759.50","Services - Security","130248442","27/03/2019","Facilities Management","Management of Vacant Properties","R4405"
"Wolverhampton City Council","http://opendatacommunities.org/id/metropolitan-district-council/wolverhampton","701832","Bbp.Security Services & Training Limited","416WCC180319","440.00","Services - Security","130248441","27/03/2019","Maintenance Programme","Asset Management Team","R4405"
"Wolverhampton City Council","http://opendatacommunities.org/id/metropolitan-district-council/wolverhampton","701832","Bbp.Security Services & Training Limited","418WCC180319","3,528.00","Services - Security","130248443","27/03/2019","Facilities Management","Parkfields Office Accomodation","R4405"
"Wolverhampton City Council","http://opendatacommunities.org/id/metropolitan-district-council/wolverhampton","701832","Bbp.Security Services & Training Limited","403WCC200219","8,736.00","Services - Security","130245236","22/03/2019","Environmental Maintenance","Parks / Open Spaces - Repairs & Maintenance","R4405"
"Wolverhampton City Council","http://opendatacommunities.org/id/metropolitan-district-council/wolverhampton","701832","Bbp.Security Services & Training Limited","009AEW080319","4,032.00","Services - Security","130248439","22/03/2019","Adult Education","Service Wide","R4405"
"Wolverhampton City Council","http://opendatacommunities.org/id/metropolitan-district-council/wolverhampton","701832","Bbp.Security Services & Training Limited","009AEW080319","5,494.13","Services - Security","130248439","22/03/2019","Adult Education","Service Wide","R4405"
"Wolverhampton City Council","http://opendatacommunities.org/id/metropolitan-district-council/wolverhampton","701832","Bbp.Security Services & Training Limited","419WCC180319","2,472.75","Services - Security","130248444","27/03/2019","Markets","Wholesale Market Facilities Management","R4405"
"Wolverhampton City Council","http://opendatacommunities.org/id/metropolitan-district-council/wolverhampton","701832","Bbp.Security Services & Training Limited","411WCC120319","3,189.00","Services - Security","130247699","20/03/2019","Markets","Bilston Market and Licensed Operations","R4405"
"Wolverhampton City Council","http://opendatacommunities.org/id/metropolitan-district-council/wolverhampton","701832","Bbp.Security Services & Training Limited","396WCC140219","5,418.00","Services - Security","130244585","13/03/2019","Facilities Management","Parkfields Office Accomodation","R4405"
"Wolverhampton City Council","http://opendatacommunities.org/id/metropolitan-district-council/wolverhampton","701832","Bbp.Security Services & Training Limited","391WCC130219","2,331.00","Services - Security","130244417","13/03/2019","Facilities Management","i10 Facilities Management","R4405"
"Wolverhampton City Council","http://opendatacommunities.org/id/metropolitan-district-council/wolverhampton","701832","Bbp.Security Services & Training Limited","414WCC130319","860.00","Services - Professional Fees","130247702","20/03/2019","City Development","Strategic Disposals","R4400"
"Wolverhampton City Council","http://opendatacommunities.org/id/metropolitan-district-council/wolverhampton","701832","Bbp.Security Services & Training Limited","413WCC120319","6,566.25","Services - Security","130247701","20/03/2019","Markets","Wolverhampton Indoor and Open Market","R4405"
"Wolverhampton City Council","http://opendatacommunities.org/id/metropolitan-district-council/wolverhampton","701832","Bbp.Security Services & Training Limited","010AEW080319","4,872.00","Services - Security","130247179","15/03/2019","Adult Education","Service Wide","R4405"
"Wolverhampton City Council","http://opendatacommunities.org/id/metropolitan-district-council/wolverhampton","701832","Bbp.Security Services & Training Limited","406WCC260219","5,773.00","Services - Security","130245694","06/03/2019","Facilities Management","Management of Vacant Properties","R4405"
"Wolverhampton City Council","http://opendatacommunities.org/id/metropolitan-district-council/wolverhampton","701832","Bbp.Security Services & Training Limited","398WCC140219","3,969.00","Services - Security","130244587","13/03/2019","Facilities Management","Parkfields Office Accomodation","R4405"
"Wolverhampton City Council","http://opendatacommunities.org/id/metropolitan-district-council/wolverhampton","701832","Bbp.Security Services & Training Limited","392WCC130219","1,029.00","Services - Security","130244418","13/03/2019","Facilities Management","Parkfields Office Accomodation","R4405"
"Wolverhampton City Council","http://opendatacommunities.org/id/metropolitan-district-council/wolverhampton","701832","Bbp.Security Services & Training Limited","409WCC060319","5,100.00","Services - Security","130247001","13/03/2019","Facilities Management","Management of Vacant Properties","R4405"
"Wolverhampton City Council","http://opendatacommunities.org/id/metropolitan-district-council/wolverhampton","701832","Bbp.Security Services & Training Limited","407WCC00319","3,930.50","Services - Security","130247000","13/03/2019","Licensing","Private Hire Vehicles","R4405"
"Wolverhampton City Council","http://opendatacommunities.org/id/metropolitan-district-council/wolverhampton","701832","Bbp.Security Services & Training Limited","405WCC260219","2,630.00","Services - Security","130245693","06/03/2019","Visitor Economy","Bantock House Museum","R4405"
"Wolverhampton City Council","http://opendatacommunities.org/id/metropolitan-district-council/wolverhampton","701832","Bbp.Security Services & Training Limited","397WCC140219","3,060.75","Services - Security","130244586","13/03/2019","Markets","Wholesale Market Facilities Management","R4405"
"Wolverhampton City Council","http://opendatacommunities.org/id/metropolitan-district-council/wolverhampton","701832","Bbp.Security Services & Training Limited","387WCC040219","1,170.00","Services - Security","130243151","13/03/2019","Facilities Management","Caretakers Supply Pool","R4405"
"Wolverhampton City Council","http://opendatacommunities.org/id/metropolitan-district-council/wolverhampton","701833","BCC Mac T/A Ss Mary & John Catholic","SEN Mainstream Top Ups Autumn Term 18 - SS Mary & John Catholic Academy","1,196.00","Grant Payments","190570927","08/03/2019","Central Education","High Needs Top Up Academies","R4700"
"Wolverhampton City Council","http://opendatacommunities.org/id/metropolitan-district-council/wolverhampton","701833","BCC Mac T/A Ss Mary & John Catholic","SEN Mainstream Top Ups Spring Term 19 - SS Mary & John Catholic Academy","1,036.53","Grant Payments","190570928","08/03/2019","Central Education","High Needs Top Up Academies","R4700"
"Wolverhampton City Council","http://opendatacommunities.org/id/metropolitan-district-council/wolverhampton","701835","BCC Mac T/A St Michaels Catholic","EYPP Spring 2019","381.60","TPP - Private Nursery Education Funding","190578180","27/03/2019","Early Years","Early Years Pupil Premium","R5035"
"Wolverhampton City Council","http://opendatacommunities.org/id/metropolitan-district-council/wolverhampton","701835","BCC Mac T/A St Michaels Catholic","SEN Mainstream Top Ups Spring Term 19 - St Michael�s Catholic Primary","8,292.23","Grant Payments","190570934","08/03/2019","Central Education","High Needs Top Up Academies","R4700"
"Wolverhampton City Council","http://opendatacommunities.org/id/metropolitan-district-council/wolverhampton","701835","BCC Mac T/A St Michaels Catholic","SEN Mainstream Top Ups Autumn Term 18 - St Michael�s Catholic Primary","9,567.96","Grant Payments","190570933","08/03/2019","Central Education","High Needs Top Up Academies","R4700"
"Wolverhampton City Council","http://opendatacommunities.org/id/metropolitan-district-council/wolverhampton","701836","BCC Mac T/A St Teresa�S Catholic","SEN Mainstream Top Ups Spring Term 19 - St Teresa�s Catholic Primary","1,945.49","Grant Payments","190570938","08/03/2019","Central Education","High Needs Top Up Academies","R4700"
"Wolverhampton City Council","http://opendatacommunities.org/id/metropolitan-district-council/wolverhampton","701836","BCC Mac T/A St Teresa�S Catholic","SEN Mainstream Top Ups Autumn Term 18 - St Teresa�s Catholic Primary","1,196.00","Grant Payments","190570937","08/03/2019","Central Education","High Needs Top Up Academies","R4700"
"Wolverhampton City Council","http://opendatacommunities.org/id/metropolitan-district-council/wolverhampton","701837","SS Peter & Paul Cath. Primary & Nursery","SEN Mainstream Top Ups Spring Term 19 - SS Peter & Paul Catholic Primary","4,146.12","Grant Payments","190570942","08/03/2019","Central Education","High Needs Top Up Academies","R4700"
"Wolverhampton City Council","http://opendatacommunities.org/id/metropolitan-district-council/wolverhampton","701837","SS Peter & Paul Cath. Primary & Nursery","SEN Mainstream Top Ups Autumn Term 18 - SS Peter & Paul Catholic Primary","4,783.98","Grant Payments","190570941","08/03/2019","Central Education","High Needs Top Up Academies","R4700"
"Wolverhampton City Council","http://opendatacommunities.org/id/metropolitan-district-council/wolverhampton","701837","SS Peter & Paul Cath. Primary & Nursery","EYPP Spring 2019","381.60","TPP - Private Nursery Education Funding","190578180","27/03/2019","Early Years","Early Years Pupil Premium","R5035"
"Wolverhampton City Council","http://opendatacommunities.org/id/metropolitan-district-council/wolverhampton","701848","Bearing Man Limited","808680-00","37.48","Equipment - Purchase","190571841","13/03/2019","Fleet Services","Fleet Management","R4000"
"Wolverhampton City Council","http://opendatacommunities.org/id/metropolitan-district-council/wolverhampton","701848","Bearing Man Limited","808680-00","10.06","Equipment - Purchase","190571841","13/03/2019","Fleet Services","Fleet Management","R4000"
"Wolverhampton City Council","http://opendatacommunities.org/id/metropolitan-district-council/wolverhampton","701867","Believe To Achieve Limited","13598","128.00","Services - Supplies and Services to service users","130246792","13/03/2019","Strengthening Families","EI Area 6- Dovecotes","R4408"
"Wolverhampton City Council","http://opendatacommunities.org/id/metropolitan-district-council/wolverhampton","701867","Believe To Achieve Limited","13597","96.00","Services - Professional Fees","130246791","08/03/2019","Strengthening Families","EI Area 1- Eastfield","R4400"
"Wolverhampton City Council","http://opendatacommunities.org/id/metropolitan-district-council/wolverhampton","701885","Berrymans Lace Mawer","2430473 - Correction","1,004.25","Insurance - General","130248576","22/03/2019","Audit Services","Legal Liability","R4962"
"Wolverhampton City Council","http://opendatacommunities.org/id/metropolitan-district-council/wolverhampton","701920","Biffa Waste Services Limited","887L49940","7,421.75","TPP - Waste Disposal","130247954","22/03/2019","Waste and Recycling Service","Waste Collection and Recycling Service - General","R5003"
"Wolverhampton City Council","http://opendatacommunities.org/id/metropolitan-district-council/wolverhampton","701920","Biffa Waste Services Limited","887L49999","5,823.79","TPP - Waste Disposal","130244903","06/03/2019","Waste and Recycling Service","Waste Collection and Recycling Service - General","R5003"
"Wolverhampton City Council","http://opendatacommunities.org/id/metropolitan-district-council/wolverhampton","701920","Biffa Waste Services Limited","887L50057","9,128.12","TPP - Waste Disposal","130244904","13/03/2019","Waste and Recycling Service","Waste Collection and Recycling Service - General","R5003"
"Wolverhampton City Council","http://opendatacommunities.org/id/metropolitan-district-council/wolverhampton","701920","Biffa Waste Services Limited","887L50119","2,752.90","TPP - Waste Disposal","130245989","20/03/2019","Waste and Recycling Service","Waste Collection and Recycling Service - General","R5003"
"Wolverhampton City Council","http://opendatacommunities.org/id/metropolitan-district-council/wolverhampton","701920","Biffa Waste Services Limited","887L50119","0.18","TPP - Waste Disposal","130245989","20/03/2019","Waste and Recycling Service","Waste Collection and Recycling Service - General","R5003"
"Wolverhampton City Council","http://opendatacommunities.org/id/metropolitan-district-council/wolverhampton","701920","Biffa Waste Services Limited","887L50119","8,109.14","TPP - Waste Disposal","130245989","20/03/2019","Waste and Recycling Service","Waste Collection and Recycling Service - General","R5003"
"Wolverhampton City Council","http://opendatacommunities.org/id/metropolitan-district-council/wolverhampton","701920","Biffa Waste Services Limited","887L50119","0.06","TPP - Waste Disposal","130245989","20/03/2019","Waste and Recycling Service","Waste Collection and Recycling Service - General","R5003"
"Wolverhampton City Council","http://opendatacommunities.org/id/metropolitan-district-council/wolverhampton","701920","Biffa Waste Services Limited","887L50119","0.10","TPP - Waste Disposal","130245989","20/03/2019","Waste and Recycling Service","Waste Collection and Recycling Service - General","R5003"
"Wolverhampton City Council","http://opendatacommunities.org/id/metropolitan-district-council/wolverhampton","701920","Biffa Waste Services Limited","887L50119","0.30","TPP - Waste Disposal","130245989","20/03/2019","Waste and Recycling Service","Waste Collection and Recycling Service - General","R5003"
"Wolverhampton City Council","http://opendatacommunities.org/id/metropolitan-district-council/wolverhampton","701930","Bilston Resource Centre","CWC001","851.50","Training Expenses","130245990","15/03/2019","Skills","IMPACT","R1650"
"Wolverhampton City Council","http://opendatacommunities.org/id/metropolitan-district-council/wolverhampton","701944","Birmingham CC - General Fund","9002652964","9,674.16","Comms - Postage","130244003","13/03/2019","ICTS","Document Centre - General","R4503"
"Wolverhampton City Council","http://opendatacommunities.org/id/metropolitan-district-council/wolverhampton","701944","Birmingham CC - General Fund","9002652963","2,791.26","Comms - Postage","130244002","08/03/2019","Public Service Reform","Electoral Registration","R4503"
"Wolverhampton City Council","http://opendatacommunities.org/id/metropolitan-district-council/wolverhampton","701944","Birmingham CC - General Fund","9002655163","4,553.73","TPP - Payments to Local Authorities","130247412","15/03/2019","Special Educational Needs","SEN Education OOC","R5100"
"Wolverhampton City Council","http://opendatacommunities.org/id/metropolitan-district-council/wolverhampton","701944","Birmingham CC - General Fund","9002655164","6,154.65","TPP - Payments to Local Authorities","130247703","15/03/2019","Special Educational Needs","SEN Education OOC","R5100"
"Wolverhampton City Council","http://opendatacommunities.org/id/metropolitan-district-council/wolverhampton","701945","Birmingham City University","11761243-007","-900.00","Training Expenses","130244189","13/03/2019","Public Service Reform","Centralised Training","R1650"
"Wolverhampton City Council","http://opendatacommunities.org/id/metropolitan-district-council/wolverhampton","701945","Birmingham City University","11761243-009","2,683.00","Training Expenses","130245238","13/03/2019","Public Service Reform","Centralised Training","R1650"
"Wolverhampton City Council","http://opendatacommunities.org/id/metropolitan-district-council/wolverhampton","701962","Black Country Chamber Of Commerce","1002855","18,845.00","Grant Payments","130248603","27/03/2019","Enterprise","AIM for the Black Country non shared costs","R4700"
"Wolverhampton City Council","http://opendatacommunities.org/id/metropolitan-district-council/wolverhampton","701963","Black Country Consortium Limited","1966","15,306.55","Grant Payments","130247557","15/03/2019","Enterprise","AIM for the Black Country shared costs","R4700"
"Wolverhampton City Council","http://opendatacommunities.org/id/metropolitan-district-council/wolverhampton","701971","Black Country Touring","181980","5,225.00","Grant Payments","130244764","15/03/2019","Visitor Economy","Arts Development","R4700"
"Wolverhampton City Council","http://opendatacommunities.org/id/metropolitan-district-council/wolverhampton","701983","Blakenhall Neighbourhood Nursery","EYPP Spring 2019","95.40","TPP - Private Nursery Education Funding","190578180","27/03/2019","Early Years","Early Years Pupil Premium","R5035"
"Wolverhampton City Council","http://opendatacommunities.org/id/metropolitan-district-council/wolverhampton","701983","Blakenhall Neighbourhood Nursery","NEF Spring 2019 INST 2","17,237.95","TPP - Private Nursery Education Funding","190578170","27/03/2019","Early Years","Early Years Universal Entitlement for 3 and 4 Year Olds","R5035"
"Wolverhampton City Council","http://opendatacommunities.org/id/metropolitan-district-council/wolverhampton","701983","Blakenhall Neighbourhood Nursery","TFT Spring 2019 Inst 2","4,071.48","TPP - Private Nursery Education Funding","190576181","20/03/2019","Early Years","Early Years Entitlement Funding for Disadvantaged 2 Year Olds","R5035"
"Wolverhampton City Council","http://opendatacommunities.org/id/metropolitan-district-council/wolverhampton","701983","Blakenhall Neighbourhood Nursery","Enhanced Inclusion Funding Spring 2019 G Aulakh Singh","1,000.00","TPP - Private Nursery Education Funding","190578211","27/03/2019","Early Years","Early Years SEN Inclusion Fund","R5035"
"Wolverhampton City Council","http://opendatacommunities.org/id/metropolitan-district-council/wolverhampton","701996","Blue Group Interntl Limited T/A Bluecare","HSOC5730622","1,369.00","Agency Staff","130245695","22/03/2019","Strengthening Families","CP Area 8 - Children�s Village","R1100"
"Wolverhampton City Council","http://opendatacommunities.org/id/metropolitan-district-council/wolverhampton","701996","Blue Group Interntl Limited T/A Bluecare","HSOC5729197","1,369.00","Agency Staff","130244004","08/03/2019","Strengthening Families","CP Area 8 - Children�s Village","R1100"
"Wolverhampton City Council","http://opendatacommunities.org/id/metropolitan-district-council/wolverhampton","701996","Blue Group Interntl Limited T/A Bluecare","HSOC5723201","7.65","Agency Staff","130244914","01/03/2019","Strengthening Families","CP Area 8 - Children�s Village","R1100"
"Wolverhampton City Council","http://opendatacommunities.org/id/metropolitan-district-council/wolverhampton","701996","Blue Group Interntl Limited T/A Bluecare","HSOC5722085","1,369.00","Agency Staff","130244913","01/03/2019","Strengthening Families","CP Area 8 - Children�s Village","R1100"
"Wolverhampton City Council","http://opendatacommunities.org/id/metropolitan-district-council/wolverhampton","701996","Blue Group Interntl Limited T/A Bluecare","HSOC5719865","25.20","Agency Staff","130244909","01/03/2019","Strengthening Families","CP Area 8 - Children�s Village","R1100"
"Wolverhampton City Council","http://opendatacommunities.org/id/metropolitan-district-council/wolverhampton","701996","Blue Group Interntl Limited T/A Bluecare","HSOC5719866","1,369.00","Agency Staff","130244910","01/03/2019","Strengthening Families","CP Area 8 - Children�s Village","R1100"
"Wolverhampton City Council","http://opendatacommunities.org/id/metropolitan-district-council/wolverhampton","701996","Blue Group Interntl Limited T/A Bluecare","HSOC5720689","1,369.00","Agency Staff","130244911","01/03/2019","Strengthening Families","CP Area 8 - Children�s Village","R1100"
"Wolverhampton City Council","http://opendatacommunities.org/id/metropolitan-district-council/wolverhampton","701996","Blue Group Interntl Limited T/A Bluecare","HSOC5720690","10.35","Agency Staff","130244912","01/03/2019","Strengthening Families","CP Area 8 - Children�s Village","R1100"
"Wolverhampton City Council","http://opendatacommunities.org/id/metropolitan-district-council/wolverhampton","701996","Blue Group Interntl Limited T/A Bluecare","HSOC5725597","4.05","Agency Staff","130244915","01/03/2019","Strengthening Families","CP Area 8 - Children�s Village","R1100"
"Wolverhampton City Council","http://opendatacommunities.org/id/metropolitan-district-council/wolverhampton","701996","Blue Group Interntl Limited T/A Bluecare","HSOC5728518","1,369.00","Agency Staff","130243396","01/03/2019","Strengthening Families","CP Area 8 - Children�s Village","R1100"
"Wolverhampton City Council","http://opendatacommunities.org/id/metropolitan-district-council/wolverhampton","701999","Blue Mountain Foods Limited","7910","38.00","Provisions (Resale)","130238005","13/03/2019","Catering","Education Catering - General Overheads","R4102"
"Wolverhampton City Council","http://opendatacommunities.org/id/metropolitan-district-council/wolverhampton","702015","Boc Limited","3050259736","1.95","Materials","190570537","06/03/2019","Fleet Services","Fleet Management","R4007"
"Wolverhampton City Council","http://opendatacommunities.org/id/metropolitan-district-council/wolverhampton","702015","Boc Limited","3050259736","2.00","Materials","190570537","06/03/2019","Fleet Services","Fleet Management","R4007"
"Wolverhampton City Council","http://opendatacommunities.org/id/metropolitan-district-council/wolverhampton","702015","Boc Limited","3050259736","557.98","Materials","190570537","06/03/2019","Fleet Services","Fleet Management","R4007"
"Wolverhampton City Council","http://opendatacommunities.org/id/metropolitan-district-council/wolverhampton","702015","Boc Limited","3051489990","95.25","Gas","130246355","27/03/2019","Visitor Economy","The Little Civic","R2101"
"Wolverhampton City Council","http://opendatacommunities.org/id/metropolitan-district-council/wolverhampton","702020","Boningale Nurseries","604109","226.52","Materials","130248604","27/03/2019","Bereavement Services","Bereavement services - Grounds maintenance","R4007"
"Wolverhampton City Council","http://opendatacommunities.org/id/metropolitan-district-council/wolverhampton","702020","Boningale Nurseries","604109","112.50","Equipment - Purchase","130248604","27/03/2019","Bereavement Services","Bereavement services - Grounds maintenance","R4000"
"Wolverhampton City Council","http://opendatacommunities.org/id/metropolitan-district-council/wolverhampton","702020","Boningale Nurseries","604109","141.30","Materials","130248604","27/03/2019","Bereavement Services","Bereavement services - Grounds maintenance","R4007"
"Wolverhampton City Council","http://opendatacommunities.org/id/metropolitan-district-council/wolverhampton","702020","Boningale Nurseries","604109","543.60","Materials","130248604","27/03/2019","Bereavement Services","Bereavement services - Grounds maintenance","R4007"
"Wolverhampton City Council","http://opendatacommunities.org/id/metropolitan-district-council/wolverhampton","702020","Boningale Nurseries","604109","244.20","Materials","130248604","27/03/2019","Bereavement Services","Bereavement services - Grounds maintenance","R4007"
"Wolverhampton City Council","http://opendatacommunities.org/id/metropolitan-district-council/wolverhampton","702020","Boningale Nurseries","604109","40.80","Materials","130248604","27/03/2019","Bereavement Services","Bereavement services - Grounds maintenance","R4007"
"Wolverhampton City Council","http://opendatacommunities.org/id/metropolitan-district-council/wolverhampton","702020","Boningale Nurseries","604109","200.00","Materials","130248604","27/03/2019","Bereavement Services","Bereavement services - Grounds maintenance","R4007"
"Wolverhampton City Council","http://opendatacommunities.org/id/metropolitan-district-council/wolverhampton","702020","Boningale Nurseries","604109","55.00","Materials","130248604","27/03/2019","Bereavement Services","Bereavement services - Grounds maintenance","R4007"
"Wolverhampton City Council","http://opendatacommunities.org/id/metropolitan-district-council/wolverhampton","702032","Boon Edam Limited","90031569","2,082.00","R&M - Departmental planned (external)","130244005","06/03/2019","Maintenance Programme","Civic Centre Repairs & Maintenance","R2001"
"Wolverhampton City Council","http://opendatacommunities.org/id/metropolitan-district-council/wolverhampton","702032","Boon Edam Limited","90033076","3,653.67","R&M - Departmental planned (external)","130245849","22/03/2019","Maintenance Programme","Civic Centre Repairs & Maintenance","R2001"
"Wolverhampton City Council","http://opendatacommunities.org/id/metropolitan-district-council/wolverhampton","702041","Boulton Travel Limited","BTWCBM1.39","1,350.00","Client Transport","130246182","27/03/2019","Special Educational Needs","Special - Transport","R3042"
"Wolverhampton City Council","http://opendatacommunities.org/id/metropolitan-district-council/wolverhampton","702041","Boulton Travel Limited","BTWCTW12.17","1,820.00","Client Transport","130245994","27/03/2019","Special Educational Needs","Special - Transport","R3042"
"Wolverhampton City Council","http://opendatacommunities.org/id/metropolitan-district-council/wolverhampton","702041","Boulton Travel Limited","BTWCGPT3.14","1,260.00","Client Transport","130245992","27/03/2019","Special Educational Needs","Special - Transport","R3042"
"Wolverhampton City Council","http://opendatacommunities.org/id/metropolitan-district-council/wolverhampton","702041","Boulton Travel Limited","BTWCBM3.39","1,350.00","Client Transport","130246183","27/03/2019","Special Educational Needs","Special - Transport","R3042"
"Wolverhampton City Council","http://opendatacommunities.org/id/metropolitan-district-council/wolverhampton","702041","Boulton Travel Limited","BTWCPF2.2","1,425.00","Client Transport","130245993","27/03/2019","Special Educational Needs","Special - Transport","R3042"
"Wolverhampton City Council","http://opendatacommunities.org/id/metropolitan-district-council/wolverhampton","702041","Boulton Travel Limited","BTWCBM5.39","1,350.00","Client Transport","130245991","27/03/2019","Special Educational Needs","Special - Transport","R3042"
"Wolverhampton City Council","http://opendatacommunities.org/id/metropolitan-district-council/wolverhampton","702041","Boulton Travel Limited","BTWCTW13.13","1,330.00","Client Transport","130245995","27/03/2019","Special Educational Needs","Special - Transport","R3042"
"Wolverhampton City Council","http://opendatacommunities.org/id/metropolitan-district-council/wolverhampton","702041","Boulton Travel Limited","BTWCBM4.39","1,350.00","Client Transport","130246184","27/03/2019","Special Educational Needs","Special - Transport","R3042"
"Wolverhampton City Council","http://opendatacommunities.org/id/metropolitan-district-council/wolverhampton","702046","Bourne Leisure Limited","0001415131","2.42","TPP - Short Breaks","130243756","06/03/2019","Carer Support","Carers Support","R5500"
"Wolverhampton City Council","http://opendatacommunities.org/id/metropolitan-district-council/wolverhampton","702046","Bourne Leisure Limited","BR00290160","89.00","TPP - Short Breaks","130243761","06/03/2019","Carer Support","Carers Support","R5500"
"Wolverhampton City Council","http://opendatacommunities.org/id/metropolitan-district-council/wolverhampton","702046","Bourne Leisure Limited","BR00284610","10.00","TPP - Short Breaks","130243759","06/03/2019","Carer Support","Carers Support","R5500"
"Wolverhampton City Council","http://opendatacommunities.org/id/metropolitan-district-council/wolverhampton","702046","Bourne Leisure Limited","0001403124","2.41","TPP - Short Breaks","130243755","06/03/2019","Carer Support","Carers Support","R5500"
"Wolverhampton City Council","http://opendatacommunities.org/id/metropolitan-district-council/wolverhampton","702046","Bourne Leisure Limited","0001425917","3.36","TPP - Short Breaks","130243757","06/03/2019","Carer Support","Carers Support","R5500"
"Wolverhampton City Council","http://opendatacommunities.org/id/metropolitan-district-council/wolverhampton","702046","Bourne Leisure Limited","0001434806","3.37","TPP - Short Breaks","130243758","06/03/2019","Carer Support","Carers Support","R5500"
"Wolverhampton City Council","http://opendatacommunities.org/id/metropolitan-district-council/wolverhampton","702046","Bourne Leisure Limited","BR00285202","5.25","TPP - Short Breaks","130243760","06/03/2019","Carer Support","Carers Support","R5500"
"Wolverhampton City Council","http://opendatacommunities.org/id/metropolitan-district-council/wolverhampton","702046","Bourne Leisure Limited","GR00353624","99.08","TPP - Short Breaks","130247419","22/03/2019","Carer Support","Carers Support","R5500"
"Wolverhampton City Council","http://opendatacommunities.org/id/metropolitan-district-council/wolverhampton","702046","Bourne Leisure Limited","GR00353651","113.30","TPP - Short Breaks","130247420","15/03/2019","Carer Support","Carers Support","R5500"
"Wolverhampton City Council","http://opendatacommunities.org/id/metropolitan-district-council/wolverhampton","702057","Bradley Environmental Consultant Limited","31448","252.65","Services - Professional Fees","130247558","20/03/2019","Corporate Asset Management","Statutory Surveys","R4400"
"Wolverhampton City Council","http://opendatacommunities.org/id/metropolitan-district-council/wolverhampton","702057","Bradley Environmental Consultant Limited","31449","325.41","Services - Professional Fees","130247559","20/03/2019","Corporate Asset Management","Statutory Surveys","R4400"
"Wolverhampton City Council","http://opendatacommunities.org/id/metropolitan-district-council/wolverhampton","702057","Bradley Environmental Consultant Limited","31261","438.60","Services - Professional Fees","130245850","06/03/2019","Corporate Asset Management","Statutory Surveys","R4400"
"Wolverhampton City Council","http://opendatacommunities.org/id/metropolitan-district-council/wolverhampton","702071","Brakes/Brakefresh","9279187360","36.78","Provisions (Resale)","130248288","27/03/2019","Catering","Civic Centre Catering","R4102"
"Wolverhampton City Council","http://opendatacommunities.org/id/metropolitan-district-council/wolverhampton","702071","Brakes/Brakefresh","9279184745","214.43","Provisions (Resale)","130248875","27/03/2019","Visitor Economy","Bantock - Tea Rooms","R4102"
"Wolverhampton City Council","http://opendatacommunities.org/id/metropolitan-district-council/wolverhampton","702071","Brakes/Brakefresh","9279195866","214.43","Provisions (Resale)","130248877","27/03/2019","Visitor Economy","Bantock - Tea Rooms","R4102"
"Wolverhampton City Council","http://opendatacommunities.org/id/metropolitan-district-council/wolverhampton","702071","Brakes/Brakefresh","9279191727","212.81","Provisions (Resale)","130248289","27/03/2019","Catering","Civic Centre Catering","R4102"
"Wolverhampton City Council","http://opendatacommunities.org/id/metropolitan-district-council/wolverhampton","702071","Brakes/Brakefresh","9279171304","181.04","Provisions (Resale)","130247003","27/03/2019","Catering","Civic Centre Catering","R4102"
"Wolverhampton City Council","http://opendatacommunities.org/id/metropolitan-district-council/wolverhampton","702071","Brakes/Brakefresh","9279191720","214.43","Provisions (Resale)","130248876","27/03/2019","Visitor Economy","Bantock - Tea Rooms","R4102"
"Wolverhampton City Council","http://opendatacommunities.org/id/metropolitan-district-council/wolverhampton","702071","Brakes/Brakefresh","9279163212","220.37","Provisions (Resale)","130246357","27/03/2019","Catering","Civic Centre Catering","R4102"
"Wolverhampton City Council","http://opendatacommunities.org/id/metropolitan-district-council/wolverhampton","702071","Brakes/Brakefresh","9279159949","301.23","Provisions (Resale)","130246356","27/03/2019","Catering","Civic Centre Catering","R4102"
"Wolverhampton City Council","http://opendatacommunities.org/id/metropolitan-district-council/wolverhampton","702072","Brand Creative Media Limited","1303","40.00","Marketing \ Non-staff advertising","130244283","13/03/2019","Director of Education","SENDIASS","R4317"
"Wolverhampton City Council","http://opendatacommunities.org/id/metropolitan-district-council/wolverhampton","702072","Brand Creative Media Limited","1306","80.00","Marketing \ Non-staff advertising","130245851","27/03/2019","Director of Education","SENDIASS","R4317"
"Wolverhampton City Council","http://opendatacommunities.org/id/metropolitan-district-council/wolverhampton","702093","Briggs Equiptment UK Limited","107225806","413.33","Hire of Vehicles","130245240","20/03/2019","Markets","Wholesale Market Facilities Management","R3200"
"Wolverhampton City Council","http://opendatacommunities.org/id/metropolitan-district-council/wolverhampton","702104","Bristow & Sutor","198745","75.00","Bailiff Action","130246323","06/03/2019","Parking Services","Parking Enforcement","R9382"
"Wolverhampton City Council","http://opendatacommunities.org/id/metropolitan-district-council/wolverhampton","702104","Bristow & Sutor","194830","30.00","Bailiff Action","130246556","06/03/2019","Parking Services","Parking Enforcement","R9382"
"Wolverhampton City Council","http://opendatacommunities.org/id/metropolitan-district-council/wolverhampton","702104","Bristow & Sutor","201481","91.23","Bailiff Action","130246324","06/03/2019","Parking Services","Parking Enforcement","R9382"
"Wolverhampton City Council","http://opendatacommunities.org/id/metropolitan-district-council/wolverhampton","702104","Bristow & Sutor","194840","75.00","Bailiff Action","130246567","08/03/2019","Revenues & Benefits","Revenues","R9382"
"Wolverhampton City Council","http://opendatacommunities.org/id/metropolitan-district-council/wolverhampton","702104","Bristow & Sutor","194840 VAT ONLY","75.00","Bailiff Action","130246753","08/03/2019","Revenues & Benefits","Revenues","R9382"
"Wolverhampton City Council","http://opendatacommunities.org/id/metropolitan-district-council/wolverhampton","702126","BT (Phone Bills)","CM66892145 Q031D&","95.70","Fixtures and Fittings - R&M","190576809","22/03/2019","Facilities Management","Caretakers Community Centre","R2502"
"Wolverhampton City Council","http://opendatacommunities.org/id/metropolitan-district-council/wolverhampton","702126","BT (Phone Bills)","CM59254076 Q12232","22.68","Fixtures and Fittings - R&M","190576810","22/03/2019","Facilities Management","Management of Vacant Properties","R2502"
"Wolverhampton City Council","http://opendatacommunities.org/id/metropolitan-district-council/wolverhampton","702126","BT (Phone Bills)","CM59297898 Q1205L","100.38","Fixtures and Fittings - R&M","190576939","22/03/2019","Facilities Management","Caretakers Community Centre","R2502"
"Wolverhampton City Council","http://opendatacommunities.org/id/metropolitan-district-council/wolverhampton","702126","BT (Phone Bills)","CM63913030 Q051Z&","95.70","Fixtures and Fittings - R&M","190574551","15/03/2019","Cleaning","Public Conveniences","R2502"
"Wolverhampton City Council","http://opendatacommunities.org/id/metropolitan-district-council/wolverhampton","702126","BT (Phone Bills)","CM628543460621","26.67","Comms - Telephone Rental","130246191","06/03/2019","Visitor Economy","Civic Halls - CHIP","R4504"
"Wolverhampton City Council","http://opendatacommunities.org/id/metropolitan-district-council/wolverhampton","702126","BT (Phone Bills)","CM628388720611 Q061 2Y","131.80","Comms - Telephone Rental","130246186","06/03/2019","Visitor Economy","Civic Halls - CHIP","R4504"
"Wolverhampton City Council","http://opendatacommunities.org/id/metropolitan-district-council/wolverhampton","702126","BT (Phone Bills)","CM68451735 M04339","25.97","Fixtures and Fittings - R&M","190574552","15/03/2019","Facilities Management","Victoria Square, Block 11","R2502"
"Wolverhampton City Council","http://opendatacommunities.org/id/metropolitan-district-council/wolverhampton","702126","BT (Phone Bills)","CM62916745 Q0631C","121.80","Fixtures and Fittings - R&M","190574550","15/03/2019","Maintenance Programme","Centralised R&M","R2502"
"Wolverhampton City Council","http://opendatacommunities.org/id/metropolitan-district-council/wolverhampton","702126","BT (Phone Bills)","CM628543460611 Q061 B2","131.80","Comms - Telephone Rental","130246190","08/03/2019","Visitor Economy","Civic Halls - CHIP","R4504"
"Wolverhampton City Council","http://opendatacommunities.org/id/metropolitan-district-council/wolverhampton","702126","BT (Phone Bills)","CM628388820621","26.67","Comms - Telephone Rental","130246188","06/03/2019","Visitor Economy","The Little Civic","R4504"
"Wolverhampton City Council","http://opendatacommunities.org/id/metropolitan-district-council/wolverhampton","702126","BT (Phone Bills)","CM628388720601","131.80","Comms - Telephone Rental","130246185","06/03/2019","Visitor Economy","Civic Halls - CHIP","R4504"
"Wolverhampton City Council","http://opendatacommunities.org/id/metropolitan-district-council/wolverhampton","702126","BT (Phone Bills)","VP 85396270 Q04701","83.48","Comms - Telephone Rental","190569042","06/03/2019","Parking Services","Parking Enforcement","R4504"
"Wolverhampton City Council","http://opendatacommunities.org/id/metropolitan-district-council/wolverhampton","702126","BT (Phone Bills)","CM628388720621","26.67","Comms - Telephone Rental","130246187","06/03/2019","Visitor Economy","Civic Halls - CHIP","R4504"
"Wolverhampton City Council","http://opendatacommunities.org/id/metropolitan-district-council/wolverhampton","702126","BT (Phone Bills)","CM628543460601 Q060 7&","131.80","Comms - Telephone Rental","130246189","06/03/2019","Visitor Economy","Civic Halls - CHIP","R4504"
"Wolverhampton City Council","http://opendatacommunities.org/id/metropolitan-district-council/wolverhampton","702126","BT (Phone Bills)","CM64704458 - Q045 7Y","95.70","Comms - Telephone Call charges","190573506","13/03/2019","Parking Services","Car Parks Operational Staff","R4505"
"Wolverhampton City Council","http://opendatacommunities.org/id/metropolitan-district-council/wolverhampton","702157","Browne Jacobson Llp","IN-000005768","2,596.50","Services - Professional Fees","130245241","20/03/2019","Land and Property Investment Support","Land Property Investment Fund Management Costs","R4400"
"Wolverhampton City Council","http://opendatacommunities.org/id/metropolitan-district-council/wolverhampton","702157","Browne Jacobson Llp","IN-000004900.0002","892.00","Insurance - General","130244916","06/03/2019","Audit Services","Legal Liability","R4962"
"Wolverhampton City Council","http://opendatacommunities.org/id/metropolitan-district-council/wolverhampton","702157","Browne Jacobson Llp","TP10051- JGM - IN-000007294.0002","2,522.00","Insurance - General","190576942","22/03/2019","Audit Services","Legal Liability","R4962"
"Wolverhampton City Council","http://opendatacommunities.org/id/metropolitan-district-council/wolverhampton","702157","Browne Jacobson Llp","TP160145/LG - INV000007192.0002","1,846.80","Insurance - General","190576869","22/03/2019","Audit Services","Legal Liability","R4962"
"Wolverhampton City Council","http://opendatacommunities.org/id/metropolitan-district-council/wolverhampton","702158","Browne Jacobson Llp","TP100142/Tiso/TP Sols Costs","60,000.00","Insurance - General","190573051","13/03/2019","Audit Services","Legal Liability","R4962"
"Wolverhampton City Council","http://opendatacommunities.org/id/metropolitan-district-council/wolverhampton","702164","Bruton Knowles","BHM-19-24631","150.00","Services - Professional Fees","130247561","20/03/2019","Estates and Valuations","Estates and Valuations Team","R4400"
"Wolverhampton City Council","http://opendatacommunities.org/id/metropolitan-district-council/wolverhampton","702164","Bruton Knowles","BHM-19-24638","2,000.00","External Professional Fees","130247709","20/03/2019","-","Housing General Fund General Schemes - Empty Properties Strategy","C6002"
"Wolverhampton City Council","http://opendatacommunities.org/id/metropolitan-district-council/wolverhampton","702164","Bruton Knowles","BHM-19-24523","2,000.00","Services - Professional Fees","130245996","06/03/2019","Estates and Valuations","Estates and Valuations Team","R4400"
"Wolverhampton City Council","http://opendatacommunities.org/id/metropolitan-district-council/wolverhampton","702171","BT (Business)","CM629199110631","135.70","Comms - Telephone Rental","130246192","08/03/2019","Visitor Economy","Box Office Administration","R4504"
"Wolverhampton City Council","http://opendatacommunities.org/id/metropolitan-district-council/wolverhampton","702172","BT Global","499172","19,323.00","Equipment - Hire","130246193","27/03/2019","Operation & Maintenance of Existing Network","UTC Dudley","R4001"
"Wolverhampton City Council","http://opendatacommunities.org/id/metropolitan-district-council/wolverhampton","702172","BT Global","497913","56,351.10","Equipment - Hire","130245466","15/03/2019","Operation & Maintenance of Existing Network","Walsall Recovery Costs","R4001"
"Wolverhampton City Council","http://opendatacommunities.org/id/metropolitan-district-council/wolverhampton","702172","BT Global","497575","1,909.00","Equipment - Hire","130245459","13/03/2019","Operation & Maintenance of Existing Network","Walsall Recovery Costs","R4001"
"Wolverhampton City Council","http://opendatacommunities.org/id/metropolitan-district-council/wolverhampton","702172","BT Global","497766","9,376.00","Equipment - Hire","130245465","13/03/2019","Operation & Maintenance of Existing Network","Walsall Recovery Costs","R4001"
"Wolverhampton City Council","http://opendatacommunities.org/id/metropolitan-district-council/wolverhampton","702172","BT Global","499202","5,840.49","Equipment - Hire","130246195","27/03/2019","Operation & Maintenance of Existing Network","Walsall Recovery Costs","R4001"
"Wolverhampton City Council","http://opendatacommunities.org/id/metropolitan-district-council/wolverhampton","702172","BT Global","499195","19,938.63","Equipment - Hire","130246194","27/03/2019","Operation & Maintenance of Existing Network","Walsall Recovery Costs","R4001"
"Wolverhampton City Council","http://opendatacommunities.org/id/metropolitan-district-council/wolverhampton","702172","BT Global","497503","8,149.45","Equipment - Hire","130245458","13/03/2019","Operation & Maintenance of Existing Network","Walsall Recovery Costs","R4001"
"Wolverhampton City Council","http://opendatacommunities.org/id/metropolitan-district-council/wolverhampton","702172","BT Global","497203-493588","-22,912.92","Equipment - Hire","130244191","13/03/2019","Operation & Maintenance of Existing Network","Walsall Recovery Costs","R4001"
"Wolverhampton City Council","http://opendatacommunities.org/id/metropolitan-district-council/wolverhampton","702172","BT Global","497711","63,468.30","Equipment - Hire","130245463","13/03/2019","Operation & Maintenance of Existing Network","Walsall Recovery Costs","R4001"
"Wolverhampton City Council","http://opendatacommunities.org/id/metropolitan-district-council/wolverhampton","702172","BT Global","498546","11,680.98","Equipment - Hire","130245467","20/03/2019","Operation & Maintenance of Existing Network","Walsall Recovery Costs","R4001"
"Wolverhampton City Council","http://opendatacommunities.org/id/metropolitan-district-council/wolverhampton","702172","BT Global","497764","35,855.00","Equipment - Hire","130245464","13/03/2019","Operation & Maintenance of Existing Network","Walsall Recovery Costs","R4001"
"Wolverhampton City Council","http://opendatacommunities.org/id/metropolitan-district-council/wolverhampton","702172","BT Global","492927","1,769.00","Equipment - Hire","130246793","13/03/2019","Operation & Maintenance of Existing Network","Walsall Recovery Costs","R4001"
"Wolverhampton City Council","http://opendatacommunities.org/id/metropolitan-district-council/wolverhampton","702172","BT Global","497531","21,832.62","Equipment - Hire","130244284","13/03/2019","Operation & Maintenance of Existing Network","Walsall Recovery Costs","R4001"
"Wolverhampton City Council","http://opendatacommunities.org/id/metropolitan-district-council/wolverhampton","702172","BT Global","497621","856.09","Equipment - Hire","130245462","13/03/2019","Operation & Maintenance of Existing Network","Walsall Recovery Costs","R4001"
"Wolverhampton City Council","http://opendatacommunities.org/id/metropolitan-district-council/wolverhampton","702172","BT Global","497611","1,035.00","Equipment - Hire","130245461","13/03/2019","Operation & Maintenance of Existing Network","Walsall Recovery Costs","R4001"
"Wolverhampton City Council","http://opendatacommunities.org/id/metropolitan-district-council/wolverhampton","702172","BT Global","497586","995.00","Equipment - Hire","130245460","13/03/2019","Operation & Maintenance of Existing Network","Walsall Recovery Costs","R4001"
"Wolverhampton City Council","http://opendatacommunities.org/id/metropolitan-district-council/wolverhampton","702179","Bulk Minerals Limited","003356","758.15","Materials","130247181","27/03/2019","Environmental Maintenance","Direct Schools","R4007"
"Wolverhampton City Council","http://opendatacommunities.org/id/metropolitan-district-council/wolverhampton","702181","United Living","CSIN000759","424,220.00","Construction and Conversion","130248883","27/03/2019","-","Refurbishment of Voids","C1100"
"Wolverhampton City Council","http://opendatacommunities.org/id/metropolitan-district-council/wolverhampton","702181","United Living","CSIN000757","753,885.00","Construction and Conversion","130248881","27/03/2019","-","Decent Homes - Stock Improvements","C1100"
"Wolverhampton City Council","http://opendatacommunities.org/id/metropolitan-district-council/wolverhampton","702181","United Living","CSIN000765","26,379.72","Construction and Conversion","130248564","22/03/2019","-","Decent Homes - Stock Improvements","C1100"
"Wolverhampton City Council","http://opendatacommunities.org/id/metropolitan-district-council/wolverhampton","702181","United Living","CSIN000769","40,879.00","Construction and Conversion","130247715","22/03/2019","-","Refurbishment of Voids","C1100"
"Wolverhampton City Council","http://opendatacommunities.org/id/metropolitan-district-council/wolverhampton","702181","United Living","CSIN000767","84,811.00","Construction and Conversion","130248565","22/03/2019","-","Decent Homes - Stock Improvements","C1100"
"Wolverhampton City Council","http://opendatacommunities.org/id/metropolitan-district-council/wolverhampton","702181","United Living","CSIN000778","11,225.76","Construction and Conversion","130247974","22/03/2019","-","Refurbishment of Voids","C1100"
"Wolverhampton City Council","http://opendatacommunities.org/id/metropolitan-district-council/wolverhampton","702181","United Living","CSIN000756","238,898.00","Construction and Conversion","130248880","27/03/2019","-","Decent Homes - Stock Improvements","C1100"
"Wolverhampton City Council","http://opendatacommunities.org/id/metropolitan-district-council/wolverhampton","702181","United Living","CSIN000758","65,659.00","Construction and Conversion","130248882","27/03/2019","-","Structural works","C1100"
"Wolverhampton City Council","http://opendatacommunities.org/id/metropolitan-district-council/wolverhampton","702181","United Living","CSIN000768","50,000.00","Construction and Conversion","130247714","22/03/2019","-","Refurbishment of Voids","C1100"
"Wolverhampton City Council","http://opendatacommunities.org/id/metropolitan-district-council/wolverhampton","702181","United Living","CSIN000777","14,100.32","Construction and Conversion","130247973","22/03/2019","-","Decent Homes - Stock Condition","C1100"
"Wolverhampton City Council","http://opendatacommunities.org/id/metropolitan-district-council/wolverhampton","702181","United Living","CSIN000766","11,765.00","Construction and Conversion","130247712","20/03/2019","-","Decent Homes - Stock Improvements","C1100"
"Wolverhampton City Council","http://opendatacommunities.org/id/metropolitan-district-council/wolverhampton","702181","United Living","CSIN000775","63,574.00","Construction and Conversion","130247716","20/03/2019","-","Decent Homes - Stock Improvements","C1100"
"Wolverhampton City Council","http://opendatacommunities.org/id/metropolitan-district-council/wolverhampton","702210","Accord Housing (Bushbury Triangle)","0000015381","298.33","TPP - Child Care provided for client","130245696","08/03/2019","Adult Education","Advance Learner Loan","R5034"
"Wolverhampton City Council","http://opendatacommunities.org/id/metropolitan-district-council/wolverhampton","702210","Accord Housing (Bushbury Triangle)","0000015680","622.78","TPP - Child Care provided for client","130245697","20/03/2019","Adult Education","Advance Learner Loan","R5034"
"Wolverhampton City Council","http://opendatacommunities.org/id/metropolitan-district-council/wolverhampton","702210","Accord Housing (Bushbury Triangle)","0000015830","269.99","TPP - Child Care provided for client","130245698","20/03/2019","Adult Education","Advance Learner Loan","R5034"
"Wolverhampton City Council","http://opendatacommunities.org/id/metropolitan-district-council/wolverhampton","702210","Accord Housing (Bushbury Triangle)","0000016120","458.84","TPP - Child Care provided for client","130245700","15/03/2019","Adult Education","Advance Learner Loan","R5034"
"Wolverhampton City Council","http://opendatacommunities.org/id/metropolitan-district-council/wolverhampton","702210","Accord Housing (Bushbury Triangle)","0000015974","502.22","TPP - Child Care provided for client","130245699","15/03/2019","Adult Education","Advance Learner Loan","R5034"
"Wolverhampton City Council","http://opendatacommunities.org/id/metropolitan-district-council/wolverhampton","702253","C P Davidson & Sons Limited","17375","3,600.00","Hire of Vehicles","190579249","27/03/2019","Fleet Services","Fleet Management","R3200"
"Wolverhampton City Council","http://opendatacommunities.org/id/metropolitan-district-council/wolverhampton","702253","C P Davidson & Sons Limited","35064689","242.29","Hire of Vehicles","190579275","27/03/2019","Fleet Services","Fleet Management","R3200"
"Wolverhampton City Council","http://opendatacommunities.org/id/metropolitan-district-council/wolverhampton","702253","C P Davidson & Sons Limited","17376","3,600.00","Hire of Vehicles","190579250","27/03/2019","Fleet Services","Fleet Management","R3200"
"Wolverhampton City Council","http://opendatacommunities.org/id/metropolitan-district-council/wolverhampton","702267","Caboodle Books & Authors Abroad Limited.","INV-27690","465.00","Marketing \ Non-staff advertising","130245701","27/03/2019","Local Economy","Global Budgets","R4317"
"Wolverhampton City Council","http://opendatacommunities.org/id/metropolitan-district-council/wolverhampton","702273","Cale Access  UK Ltd (Cale Briparc)","139062","262.22","Equipment - R & M","130242714","13/03/2019","Parking Services","On Street Parking","R4003"
"Wolverhampton City Council","http://opendatacommunities.org/id/metropolitan-district-council/wolverhampton","702273","Cale Access  UK Ltd (Cale Briparc)","137854","745.50","Equipment - R & M","130235516","13/03/2019","Parking Services","Car Parks Operational Staff","R4003"
"Wolverhampton City Council","http://opendatacommunities.org/id/metropolitan-district-council/wolverhampton","702273","Cale Access  UK Ltd (Cale Briparc)","138272","217.20","Equipment - R & M","130237835","13/03/2019","Parking Services","On Street Parking","R4003"
"Wolverhampton City Council","http://opendatacommunities.org/id/metropolitan-district-council/wolverhampton","702273","Cale Access  UK Ltd (Cale Briparc)","138030","273.75","Equipment - R & M","130236075","13/03/2019","Parking Services","On Street Parking","R4003"
"Wolverhampton City Council","http://opendatacommunities.org/id/metropolitan-district-council/wolverhampton","702273","Cale Access  UK Ltd (Cale Briparc)","132405","108.60","Equipment - R & M","130222979","13/03/2019","Parking Services","Car Parks Operational Staff","R4003"
"Wolverhampton City Council","http://opendatacommunities.org/id/metropolitan-district-council/wolverhampton","702273","Cale Access  UK Ltd (Cale Briparc)","138046","-765.00","Equipment - R & M","130238561","22/03/2019","Parking Services","New Cross Residential Parking","R4003"
"Wolverhampton City Council","http://opendatacommunities.org/id/metropolitan-district-council/wolverhampton","702273","Cale Access  UK Ltd (Cale Briparc)","139725","157.04","Equipment - R & M","130248293","22/03/2019","Parking Services","On Street Parking","R4003"
"Wolverhampton City Council","http://opendatacommunities.org/id/metropolitan-district-council/wolverhampton","702273","Cale Access  UK Ltd (Cale Briparc)","132630","986.40","Equipment - Purchase","130246587","08/03/2019","Parking Services","On Street Parking","R4000"
"Wolverhampton City Council","http://opendatacommunities.org/id/metropolitan-district-council/wolverhampton","702273","Cale Access  UK Ltd (Cale Briparc)","137614","20.00","Equipment - R & M","130235661","13/03/2019","Parking Services","On Street Parking","R4003"
"Wolverhampton City Council","http://opendatacommunities.org/id/metropolitan-district-council/wolverhampton","702273","Cale Access  UK Ltd (Cale Briparc)","132328","264.00","Equipment - Purchase","130246586","08/03/2019","Parking Services","New Cross Residential Parking","R4000"
"Wolverhampton City Council","http://opendatacommunities.org/id/metropolitan-district-council/wolverhampton","702273","Cale Access  UK Ltd (Cale Briparc)","132328","18.00","Equipment - Purchase","130246586","08/03/2019","Parking Services","New Cross Residential Parking","R4000"
"Wolverhampton City Council","http://opendatacommunities.org/id/metropolitan-district-council/wolverhampton","702273","Cale Access  UK Ltd (Cale Briparc)","139671","2,372.40","Equipment - R & M","130247975","22/03/2019","Parking Services","On Street Parking","R4003"
"Wolverhampton City Council","http://opendatacommunities.org/id/metropolitan-district-council/wolverhampton","702294","Camlad Ecology Limited","19-011","438.00","Services - Professional Fees","130244917","20/03/2019","Environmental Maintenance","Parks / Open Spaces - Repairs & Maintenance","R4400"
"Wolverhampton City Council","http://opendatacommunities.org/id/metropolitan-district-council/wolverhampton","702294","Camlad Ecology Limited","19-010","485.00","Construction and Conversion","130244285","13/03/2019","-","Primary Expansion Programme","C1100"
"Wolverhampton City Council","http://opendatacommunities.org/id/metropolitan-district-council/wolverhampton","702294","Camlad Ecology Limited","19-009","926.00","Construction and Conversion","130244012","08/03/2019","-","GF - Blue Network","C1100"
"Wolverhampton City Council","http://opendatacommunities.org/id/metropolitan-district-council/wolverhampton","702294","Camlad Ecology Limited","19-008","1,230.00","Construction and Conversion","130244011","08/03/2019","-","GF - Blue Network","C1100"
"Wolverhampton City Council","http://opendatacommunities.org/id/metropolitan-district-council/wolverhampton","702294","Camlad Ecology Limited","19-001","1,858.00","Services - Professional Fees","130244010","08/03/2019","Estates and Valuations","Disposal Costs","R4400"
"Wolverhampton City Council","http://opendatacommunities.org/id/metropolitan-district-council/wolverhampton","702296","Canford Audio PLC","1122675166","120.00","Equipment - Purchase","130246588","27/03/2019","Public Protection","Environmental Crime and Consumer Protection","R4000"
"Wolverhampton City Council","http://opendatacommunities.org/id/metropolitan-district-council/wolverhampton","702306","Capita Business Serv Limited","6003861423","1,000.00","Services - Bank Charges","130245589","20/03/2019","Central Corporate Budgets","Corporate Management (Bank Charges)","R4403"
"Wolverhampton City Council","http://opendatacommunities.org/id/metropolitan-district-council/wolverhampton","702306","Capita Business Serv Limited","6003864196","99,529.22","Services - General Licences","130248745","27/03/2019","School Planning & Resources","Education Data Services","R4402"
"Wolverhampton City Council","http://opendatacommunities.org/id/metropolitan-district-council/wolverhampton","702310","Capita Resourcing Limited (Crvs)","R0060086","222.30","Computing - Licences","130242553","13/03/2019","The Hub","Criminal Convictions Checking","R4535"
"Wolverhampton City Council","http://opendatacommunities.org/id/metropolitan-district-council/wolverhampton","702310","Capita Resourcing Limited (Crvs)","R0060904","251.55","Computing - Licences","130246196","27/03/2019","The Hub","Criminal Convictions Checking","R4535"
"Wolverhampton City Council","http://opendatacommunities.org/id/metropolitan-district-council/wolverhampton","702319","Capitol Mobility Services Limited","5458","210.00","Equipment - Purchase","130244918","01/03/2019","Markets","Shopmobility","R4000"
"Wolverhampton City Council","http://opendatacommunities.org/id/metropolitan-district-council/wolverhampton","702319","Capitol Mobility Services Limited","5472","1,400.00","Equipment - Purchase","130247976","20/03/2019","Markets","Shopmobility","R4000"
